Workbook

Sheet Huvudsida
B35: www.slu.se | K35: www.odlingibalans.com

Sheet Innehåll
B1: Innehåll
B2: Kalkylbladsnamn | C2: Innehåll i kalkylbladet
B3: Huvudsida | C3: Kort information om indexets olika delar
B5: Innehåll | C5: Innehållsförteckning
B7: Indata för gården | C7: Uppgifter om gården
B9: Traktorer | C9: Uppgifter om gårdens traktorer
B11: Maskinpark | C11: Uppgifter om gårdens övriga maskinpark
B13: Grundförutsättningar för skifte | C13: Skiftenas jordart, mullhalt, arrondering och dräneringsförhållanden
B15: Årsmån | C15: Årsmånsklassning för de år som analyseras
B17: Chart1 | C17: Spindeldiagram för jämförelse av scenarion
B19: Skiften&Växtföljder - Översikt | C19: Sammanfattning av resultat* per skifte och scenario. * Avseende grundförutsättningarna för en god markstruktur samt odlingssystemindex (medelvärde) OBS! Från detta blad kan du skapa nya scenarion, navigera till dina skiften och scenarion, m.m.
B21: Grundförbättringsindex | C21: Bedömning av grundförutsättningarna för en god markstruktur med avseende på dränering, mullhalt, utförda strukturfrämjande åtgärder
B23: VFn-k | C23: Uppgifter om årsmån, grödor, tillförsel av organiskt material samt framräknade resultat för skifte n scenario k avseende: (i) antalet barmarksdagar, mängd organisk substans och rötter, samt torkdagar och alvpackning; (ii) odlingssystemindex (medelvärde och per år)
B25: MBn-k | C25: Modell som räknar ut alvpackningen på skifte nr n i scenario nr k
B27: Hur mår din jord? | C27: En aptitretare till det egentliga markstrukturtestet i fält
B29: Tabeller | C29: Modellparametrar

Sheet Indata för gården
B2: INDATA FÖR GÅRDEN
C7: Gårdsnamn
C8: Brukare
C9: Odlingsområde (välj från kartan)
C10: Startår
C11: Postadress
C12: Telefon
C13: e-post
U15: Vanlig HTML hjälp

Sheet Traktorer
C2: Traktor | E2: 4 | F2: Enkel | I2: 1.2 | J2: 2 | K2: Dubbel | N2: 1 | O2: 4 | P2: Trippel | S2: 0.8 | T2: 6 | U2: Annan | AA2: [default]
C3: Traktor | E3: 1 | F3: Enkel | I3: 1.2 | J3: 2 | AA3: Montage=1
C4: Traktor | E4: 2 | F4: Enkel | I4: 1.2 | J4: 2 | K4: Dubbel | N4: 1 | O4: 4 | AA4: Montage=2
C5: Traktor | E5: 3 | F5: Enkel | I5: 1.2 | J5: 2 | K5: Dubbel | N5: 1 | O5: 4 | P5: Trippel | S5: 0.8 | T5: 6 | AA5: Montage=3
C6: Traktor | E6: 4 | F6: Enkel | I6: 1.2 | J6: 2 | K6: Dubbel | N6: 1 | O6: 4 | P6: Trippel | S6: 0.8 | T6: 6 | U6: Annan | AA6: Montage=4
C8: Enabled
C10: =COLUMN()-COLUMN(zT_TraktorTabell)+1 -> 2 | D10: 3 | E10: 4 | F10: 5 | G10: 6 | H10: 7 | I10: 8 | J10: 9 | K10: 10 | L10: 11 | M10: 12 | N10: 13 | O10: 14 | P10: 15 | Q10: 16 | R10: 17 | S10: 18 | T10: 19 | U10: 20 | V10: 21 | W10: 22 | X10: 23 | Y10: 24
C12: Table Header Row not used on this sheet
D14: TRAKTORER
C17: Maskintyp | D17: Beskrivning | E17: Antal | F17: Montage #1 | K17: Montage #2 | P17: Montage #3 | U17: Montage #4
E18: mon- | F18: Namn | G18: Total | I18: Bakaxel | K18: Namn | L18: Total | N18: Bakaxel | P18: Namn | Q18: Total | S18: Bakaxel | U18: Namn | V18: Total | X18: Bakaxel
E19: tage | G19: vikt | H19: Vikt- | I19: Ring- | J19: Antal | L19: vikt | M19: Vikt- | N19: Ring- | O19: Antal | Q19: vikt | R19: Vikt- | S19: Ring- | T19: Antal | V19: vikt | W19: Vikt- | X19: Ring- | Y19: Antal
H20: andel | I20: tryck | J20: hjul | M20: andel | N20: tryck | O20: hjul | R20: andel | S20: tryck | T20: hjul | W20: andel | X20: tryck | Y20: hjul
G21: (kg) | H21: (%) | I21: (kp) | L21: (kg) | M21: (%) | N21: (kp) | Q21: (kg) | R21: (%) | S21: (kp) | V21: (kg) | W21: (%) | X21: (kp)
C22: Traktor | E22: 1 | F22: Enkel | I22: 1.2 | J22: 2
C23: Traktor | E23: 1 | F23: Enkel | I23: 1.2 | J23: 2
C24: Traktor | E24: 1 | F24: Enkel | I24: 1.2 | J24: 2
C25: Traktor | E25: 1 | F25: Enkel | I25: 1.2 | J25: 2
C26: Traktor | E26: 1 | F26: Enkel | I26: 1.2 | J26: 2
C27: Traktor | E27: 1 | F27: Enkel | I27: 1.2 | J27: 2
C28: Traktor | E28: 1 | F28: Enkel | I28: 1.2 | J28: 2
C29: Traktor | E29: 1 | F29: Enkel | I29: 1.2 | J29: 2
C30: Traktor | E30: 1 | F30: Enkel | I30: 1.2 | J30: 2
C31: Traktor | E31: 1 | F31: Enkel | I31: 1.2 | J31: 2
C32: Traktor | E32: 1 | F32: Enkel | I32: 1.2 | J32: 2
C33: Traktor | E33: 1 | F33: Enkel | I33: 1.2 | J33: 2
C34: Traktor | E34: 1 | F34: Enkel | I34: 1.2 | J34: 2
C35: Traktor | E35: 1 | F35: Enkel | I35: 1.2 | J35: 2
C36: Traktor | E36: 1 | F36: Enkel | I36: 1.2 | J36: 2
C37: Traktor | E37: 1 | F37: Enkel | I37: 1.2 | J37: 2
C38: Traktor | E38: 1 | F38: Enkel | I38: 1.2 | J38: 2
C39: Traktor | E39: 1 | F39: Enkel | I39: 1.2 | J39: 2
C40: Traktor | E40: 1 | F40: Enkel | I40: 1.2 | J40: 2
C41: Traktor | E41: 1 | F41: Enkel | I41: 1.2 | J41: 2
C42: Traktor | E42: 1 | F42: Enkel | I42: 1.2 | J42: 2
C43: Traktor | E43: 1 | F43: Enkel | I43: 1.2 | J43: 2
C44: Traktor | E44: 1 | F44: Enkel | I44: 1.2 | J44: 2
C45: Traktor | E45: 1 | F45: Enkel | I45: 1.2 | J45: 2
C46: Traktor | E46: 1 | F46: Enkel | I46: 1.2 | J46: 2
C47: Traktor | E47: 1 | F47: Enkel | I47: 1.2 | J47: 2
C48: Traktor | E48: 1 | F48: Enkel | I48: 1.2 | J48: 2
C49: Traktor | E49: 1 | F49: Enkel | I49: 1.2 | J49: 2
C50: Traktor | E50: 1 | F50: Enkel | I50: 1.2 | J50: 2
C51: Traktor | E51: 1 | F51: Enkel | I51: 1.2 | J51: 2
C52: Traktor | E52: 1 | F52: Enkel | I52: 1.2 | J52: 2
C53: Traktor | E53: 1 | F53: Enkel | I53: 1.2 | J53: 2
C54: Traktor | E54: 1 | F54: Enkel | I54: 1.2 | J54: 2
E117: 0

Sheet Maskinpark
C1: Enabled
E2: =Tabeller!G470 -> z_7 | F2: =Tabeller!H470 -> z_8 | J2: =Tabeller!I470 -> z_9 | K2: =Tabeller!J470 -> z_10
E3: =MATCH(E2,INDEX(zT_MaskinerDefault,ROWS(zT_MaskinerDefault),0),0) -> 3 | F3: =MATCH(F2,INDEX(zT_MaskinerDefault,ROWS(zT_MaskinerDefault),0),0) -> 4 | J3: =MATCH(J2,INDEX(zT_MaskinerDefault,ROWS(zT_MaskinerDefault),0),0) -> 5 | K3: =MATCH(K2,INDEX(zT_MaskinerDefault,ROWS(zT_MaskinerDefault),0),0) -> 6
Z5: [default]
Z6: [tomrad]
L7: =zf_overfordlast(E7,F7) ->  | Z7: Last=Nej:Axlar=0
M8: 1.5 | Q8: 1 | U8: 2 | Z8: Last=Nej:Axlar=1
M9: 1.5 | N9: 1.5 | Q9: 0.5 | R9: 0.5 | U9: 2 | V9: 2 | Z9: Last=Nej:Axlar=2
M10: 1.2 | N10: 1.2 | O10: 1.2 | Q10: =1/3 -> 0.3333333333 | R10: =1/3 -> 0.3333333333 | S10: 0.3333333333 | U10: 2 | V10: 2 | W10: 2 | Z10: Last=Nej:Axlar=3
M11: 0.8 | N11: 0.8 | O11: 0.8 | P11: 0.8 | Q11: 0.25 | R11: 0.25 | S11: 0.25 | T11: 0.25 | U11: 2 | V11: 2 | W11: 2 | X11: 2 | Z11: Last=Nej:Axlar=4
Z12: Last=Ja:Axlar=0
M13: 1.5 | Q13: 1 | U13: 2 | Z13: Last=Ja:Axlar=1
M14: 1.5 | N14: 1.5 | Q14: 0.5 | R14: 0.5 | U14: 2 | V14: 2 | Z14: Last=Ja:Axlar=2
M15: 1.2 | N15: 1.2 | O15: 1.2 | Q15: =1/3 -> 0.3333333333 | R15: =1/3 -> 0.3333333333 | S15: 0.3333333333 | U15: 2 | V15: 2 | W15: 2 | Z15: Last=Ja:Axlar=3
M16: 0.8 | N16: 0.8 | O16: 0.8 | P16: 0.8 | Q16: 0.25 | R16: 0.25 | S16: 0.25 | T16: 0.25 | U16: 2 | V16: 2 | W16: 2 | X16: 2 | Z16: Last=Ja:Axlar=4
C20: =COLUMN()-COLUMN(zT_MaskinTabell)+1 -> 2 | D20: 3 | E20: 4 | F20: 5 | G20: 6 | H20: 7 | I20: 8 | J20: 9 | K20: 10 | L20: 11 | M20: 12 | N20: 13 | O20: 14 | P20: 15 | Q20: 16 | R20: 17 | S20: 18 | T20: 19 | U20: 20 | V20: 21 | W20: 22 | X20: 23
C22: Table Header Row not used on this sheet
D24: MASKINPARK
C27: Maskintyp | D27: Beskrivning | E27: Anslutning | F27: Antal | G27: Arbets- | H27: Vikt | I27: Max | J27: Start | K27: Slut | L27: Överförd | M27: Ringtryck | Q27: Viktandel per axel | U27: Hjul per axel
E28: till traktor | F28: axlar | G28: bredd | H28: ex last | I28: last | J28: last | K28: last | L28: last | M28: Axel 1 | N28: Axel 2 | O28: Axel 3 | P28: Axel 4 | Q28: Axel 1 | R28: Axel 2 | S28: Axel 3 | T28: Axel 4 | U28: Axel 1 | V28: Axel 2 | W28: Axel 3 | X28: Axel 4
G29: (m) | H29: (kg) | I29: (kg) | J29: (%) | K29: (%) | L29: (%) | M29: (kp) | N29: (kp) | O29: (kp) | P29: (kp) | Q29: (%) | R29: (%) | S29: (%) | T29: (%)
F140: 0

Sheet Grundförutsättningar för skifte
D7: GRUNDFÖRUTSÄTTNINGAR FÖR SKIFTEN
E10: Jordtyp
E11: Matjord | G11: Alv
C13: SKIFTE | E13: JORDART (kornstorlek, mm) | F13: MULLHALT (viktprocent) | G13: JORDART (kornstorlek, mm) | H13: SKIFTETS | I13: DRÄNERING
C14: Nr | D14: Namn | H14: ARRONDERING | I14: Typ | J14: Avstånd
C15: zNull | D15: Namn | E15: mat-jordart | F15: mullhalt | G15: alv-jordart | H15: =LOWER(H14) -> arrondering | I15: typ | J15: avstånd
C16: 1
C17: 2
C18: 3
C19: 4
C20: 5
C21: 6
C22: 7
C23: 8
C24: 9
C25: 10
C26: 11
C27: 12
C28: 13
C29: 14
C30: 15
C31: 16
C32: 17
C33: 18
C34: 19
C35: 20
C36: 21
C37: 22
C38: 23
C39: 24
C40: 25

Sheet Årsmån
E1: Område | F1: Snöfri början | H1: Tjäle början
E2: =zT_omrade -> 1 | F2: Header | G2: Värde | H2: Header | I2: Tjäle
E3: Normal | F3: =CONCATENATE(LEFT($E3,4),"S") -> NormS | G3: =zf_lookup(zT_snotjale,$E$2,F3) -> 2001-03-14 | H3: =CONCATENATE(LEFT($E3,4),"T") -> NormT | I3: =zf_lookup(zT_snotjale,$E$2,H3) -> -16
E4: Kall/våt | F4: =CONCATENATE(LEFT($E4,4),"S") -> KallS | G4: =zf_lookup(zT_snotjale,$E$2,F4) -> 2001-04-16 | H4: =CONCATENATE(LEFT($E4,4),"T") -> KallT | I4: =zf_lookup(zT_snotjale,$E$2,H4) -> -39
E5: Varm/torr | F5: =CONCATENATE(LEFT($E5,4),"S") -> VarmS | G5: =zf_lookup(zT_snotjale,$E$2,F5) -> 2001-01-26 | H5: =CONCATENATE(LEFT($E5,4),"T") -> VarmT | I5: =zf_lookup(zT_snotjale,$E$2,H5) -> 16
E7: ÅRSMÅNSKLASSNING
D10: År | F10: ÅRSMÅNSKLASSNING | H10: Tabelldata (SCB) | J10: Egen data | L10: Använd data
E11: Vår | F11: Sommar | G11: Höst | H11: Snöfri | I11: Tjäle | J11: Snöfri | K11: Tjäle | L11: Snöfri | M11: Tjäle
H12: början | I12: början | J12: början | K12: början | L12: början | M12: början
E14: Vår | F14: Sommar | G14: Höst | L14: Snöfri | M14: Tjäle
D15: =startår-1 -> -1 | E15: Normal | F15: Normal | G15: Normal | H15: =zf_ReplaceYear(VLOOKUP(E15,$E$3:$G$5,3,FALSE),D15) ->  | I15: =DATE(D15,12,31)+VLOOKUP(G15,$E$3:$I$5,5,FALSE) ->  | L15: =IF(J15="",H15,J15) ->  | M15: =IF(K15="",I15,K15) -> 
D16: =D15+1 -> 0 | E16: Normal | F16: Normal | G16: Normal | H16: =zf_ReplaceYear(VLOOKUP(E16,$E$3:$G$5,3,FALSE),D16) -> 2000-03-14 | I16: =DATE(D16,12,31)+VLOOKUP(G16,$E$3:$I$5,5,FALSE) -> 1900-12-15 | L16: =IF(J16="",H16,J16) -> 2000-03-14 | M16: 1900-12-15
D17: 1 | E17: Normal | F17: Normal | G17: Normal | H17: 2001-03-14 | I17: 1901-12-15 | L17: 2001-03-14 | M17: 1901-12-15
D18: 2 | E18: Normal | F18: Normal | G18: Normal | H18: 2002-03-14 | I18: 1902-12-15 | L18: 2002-03-14 | M18: 1902-12-15
D19: 3 | E19: Normal | F19: Normal | G19: Normal | H19: 2003-03-14 | I19: 1903-12-15 | L19: 2003-03-14 | M19: 1903-12-15
D20: 4 | E20: Normal | F20: Normal | G20: Normal | H20: 2004-03-14 | I20: 1904-12-15 | L20: 2004-03-14 | M20: 1904-12-15
D21: 5 | E21: Normal | F21: Normal | G21: Normal | H21: 2005-03-14 | I21: 1905-12-15 | L21: 2005-03-14 | M21: 1905-12-15
D22: 6 | E22: Normal | F22: Normal | G22: Normal | H22: 2006-03-14 | I22: 1906-12-15 | L22: 2006-03-14 | M22: 1906-12-15
D23: 7 | E23: Normal | F23: Normal | G23: Normal | H23: 2007-03-14 | I23: 1907-12-15 | L23: 2007-03-14 | M23: 1907-12-15
D24: 8 | E24: Normal | F24: Normal | G24: Normal | H24: 2008-03-14 | I24: 1908-12-15 | L24: 2008-03-14 | M24: 1908-12-15
D25: 9 | E25: Normal | F25: Normal | G25: Normal | H25: 2009-03-14 | I25: 1909-12-15 | L25: 2009-03-14 | M25: 1909-12-15
D26: 10 | E26: Normal | F26: Normal | G26: Normal | H26: 2010-03-14 | I26: 1910-12-15 | L26: 2010-03-14 | M26: 1910-12-15
D27: 11 | E27: Normal | F27: Normal | G27: Normal | H27: 2011-03-14 | I27: 1911-12-15 | L27: 2011-03-14 | M27: 1911-12-15
D28: 12 | E28: Normal | F28: Normal | G28: Normal | H28: 2012-03-14 | I28: 1912-12-15 | L28: 2012-03-14 | M28: 1912-12-15
D29: 13 | E29: Normal | F29: Normal | G29: Normal | H29: 2013-03-14 | I29: 1913-12-15 | L29: 2013-03-14 | M29: 1913-12-15
D30: 14 | E30: Normal | F30: Normal | G30: Normal | H30: 2014-03-14 | I30: 1914-12-15 | L30: 2014-03-14 | M30: 1914-12-15
D31: 15 | E31: Normal | F31: Normal | G31: Normal | H31: 2015-03-14 | I31: 1915-12-15 | L31: 2015-03-14 | M31: 1915-12-15
D32: 16 | E32: Normal | F32: Normal | G32: Normal | H32: 2016-03-14 | I32: 1916-12-15 | L32: 2016-03-14 | M32: 1916-12-15
D33: 17 | E33: Normal | F33: Normal | G33: Normal | H33: =zf_ReplaceYear(VLOOKUP(E33,$E$3:$G$5,3,FALSE),D33) -> 2017-03-14 | I33: =DATE(D33,12,31)+VLOOKUP(G33,$E$3:$I$5,5,FALSE) -> 1917-12-15 | L33: 2017-03-14 | M33: 1917-12-15

Sheet Graf Indata (hidden)
K2: SOURCE SHEET REFERENCES
C3: =MATCH(1,INDEX(zT_SpiderSetup,0,2),0) -> 7 | D3: =MATCH(2,INDEX(zT_SpiderSetup,0,2),0) -> 1 | E3: =MATCH(3,INDEX(zT_SpiderSetup,0,2),0) -> 2 | F3: =MATCH(4,INDEX(zT_SpiderSetup,0,2),0) -> 3 | G3: =MATCH(5,INDEX(zT_SpiderSetup,0,2),0) -> 4 | H3: =MATCH(6,INDEX(zT_SpiderSetup,0,2),0) -> 5 | I3: =MATCH(7,INDEX(zT_SpiderSetup,0,2),0) -> 6 | K3: 1st row - 1 | L3: =ROW(zf_Range("zT_GrafDropdown",zT_SheetOversiktSkiften))-1 -> 18 | T3: PARAMETERS
C4: =INDEX(zT_SpiderSetup,C3,3) -> TOTALINDEX | D4: + Rotmängd | E4: + Upptorkning | F4: + Organisk substans | G4: - Andel barmark | H4: - Bearbetningar | I4: - Markbelastning | K4: 1st column - 1 | L4: =COLUMN(zf_Range("zVBA_ColRotmangd",zT_SheetOversiktSkiften))-1 -> 12 | T4: Min margin | U4: =zVBA_GrafAxisMargin -> 0.04
C5: =INDIRECT(ADDRESS($L5,$L$4+C$3,4,TRUE,zT_SheetOversiktSkiften)) ->  | K5: Row Serie A | L5: =L3+zVBA_GrafSerieA -> 19 | P5: Serie A: Graf dropdown val | Q5: 1 | T5: Integer preference bonus | U5: 0.05
K6: Row Serie B | L6: =L3+zVBA_GrafSerieB -> 20 | P6: Serie B: Graf dropdown val | Q6: 2 | Z6: 1 | AA6: 2 | AE6: 6 | AF6: 7 | AG6: 8
C7: 0 | D7: 0 | E7: 0 | F7: 0 | G7: 0 | H7: 0 | I7: 0 | X7: Option A (heltal) | Y7: =U4 -> 0.04 | Z7: =IF(AJ7=0,0,MIN(IF($AF$16:$AF$27=AJ7,$Z$16:$Z$27))) -> 0 | AA7: =IF($Z7=0,0,INDEX($Z$16:$AG$27,$Z7,AA6)) -> 0 | AE7: =IF($Z7=0,0,INDEX($Z$16:$AG$27,$Z7,AE6)) -> 0 | AF7: =IF($Z7=0,0,INDEX($Z$16:$AG$27,$Z7,AF6)) -> 0 | AG7: =IF($Z7=0,0,INDEX($Z$16:$AG$27,$Z7,AG6)) -> 0 | AH7: =IF(AF8=0,0,AF7/AF8-1) ->  | AJ7: =MIN(IF($AG$16:$AG$27>Y7,$AF$16:$AF$27)) -> 0 | AO7: Axis | AP7: =IF(AM8="A",AF7,AF8)/2 ->  | AS7: =AND(AP7=0,AP8=0) -> 
X8: Option B (en decimal) | Y8: =U4 -> 0.04 | Z8: =IF(AJ8=0,0,MIN(IF($AF$31:$AF$42=AJ8,$Z$31:$Z$42))) ->  | AA8: =IF($Z8=0,0,INDEX($Z$31:$AG$42,$Z8,AA6)) ->  | AE8: =IF($Z8=0,0,INDEX($Z$31:$AG$42,$Z8,AE6)) ->  | AJ8: =MIN(IF($AG$31:$AG$42>Y8,$AF$31:$AF$42)) ->  | AL8: Vald option | AM8: =IF(AG7=0,"B",IF(AH7<$U$5,"A","B")) -> B | AO8: Major unit | AP8: =IF(AM8="A",AE7,AE8) -> 
Q9: Unit is integer | AR9: Axis | AS9: =IF($AS$7,AP11,AP7) -> 
N10: Auto Scale | O10: =AS9 ->  | P10: =ROUND(zVBA_GrafAutoAxis,1) ->  | Q10: =((P10-INT(P10))=0) ->  | T10: Min value | U10: =MIN(C5:I6) -> 0 | Z10: 1 | AA10: 2 | AE10: 6 | AF10: 7 | AG10: 8 | AR10: Major unit | AS10: =IF($AS$7,AP12,AP8) -> 
N11: Auto Unit | O11: =AS10 ->  | P11: =ROUND(zVBA_GrafAutoUnit,1) ->  | Q11: =((P11-INT(P11))=0) ->  | T11: Max value | U11: =MAX(C5:I6) -> 0 | X11: Option A (heltal) | Y11: 0 | Z11: =IF(AJ11=0,0,MIN(IF($AF$16:$AF$27=AJ11,$Z$16:$Z$27))) -> 0 | AA11: =IF($Z11=0,0,INDEX($Z$16:$AG$27,$Z11,AA10)) -> 0 | AE11: =IF($Z11=0,0,INDEX($Z$16:$AG$27,$Z11,AE10)) -> 0 | AF11: =IF($Z11=0,0,INDEX($Z$16:$AG$27,$Z11,AF10)) -> 0 | AG11: =IF($Z11=0,0,INDEX($Z$16:$AG$27,$Z11,AG10)) -> 0 | AH11: =AF11/AF12-1 ->  | AJ11: =MAX(IF($AG$16:$AG$27>Y11,$AF$16:$AF$27)) -> 0 | AO11: Axis | AP11: =IF(AM12="A",AF11,AF12)/2 -> 
N12: Number format | O12: =CONCATENATE("x",IF(AND(Q10,Q11),"0","0.0")) ->  | T12: Max(Abs()) | U12: =MAX(ABS(U10),U11) -> 0 | X12: Option B (en decimal) | Y12: 0 | Z12: =IF(AJ12=0,0,MIN(IF($AF$31:$AF$42=AJ12,$Z$31:$Z$42))) ->  | AA12: =IF($Z12=0,0,INDEX($Z$31:$AG$42,$Z12,AA10)) ->  | AE12: =IF($Z12=0,0,INDEX($Z$31:$AG$42,$Z12,AE10)) ->  | AJ12: =MAX(IF($AG$31:$AG$42>Y12,$AF$31:$AF$42)) ->  | AL12: Vald option | AM12: =IF(AG11=0,"B",IF(AH11<$U$5,"A","B")) -> B | AO12: Major unit | AP12: =IF(AM12="A",AE11,AE12) -> 
T13: Max(Abs()) as integer | U13: =INT(U12)+IF((U12-INT(U12))=0,0,1) -> 0
X14: OPTION A | Z14: Prio | AA14: Antal | AB14: Delta | AC14: Heltal | AE14: Delta | AF14: Axis | AG14: Margin
X15: ANALYS | AA15: steg | AC15: REST | AE15: rounded | AF15: range
Y16: =2*U13 -> 0 | Z16: 1 | AA16: 8 | AB16: =Y$16/AA16 -> 0 | AC16: =ROUND(AB16-INT(ROUND(AB16,5)),5) -> 0 | AE16: =IF(AC16=0,ROUND(AB16,0),0) -> 0 | AF16: =IF(AE16=0,0,AA16*AE16) -> 0 | AG16: =IF(AF16=0,0,AF16/$Y$31-1) -> 0
Z17: =Z16+1 -> 2 | AA17: 10 | AB17: 0 | AC17: =ROUND(AB17-INT(ROUND(AB17,5)),5) -> 0 | AE17: =IF(AC17=0,ROUND(AB17,0),0) -> 0 | AF17: =IF(AE17=0,0,AA17*AE17) -> 0 | AG17: =IF(AF17=0,-1,AF17/$Y$31-1) -> -1
Z18: =Z17+1 -> 3 | AA18: 9 | AB18: 0 | AC18: 0 | AE18: 0 | AF18: 0 | AG18: -1
Z19: 4 | AA19: 7 | AB19: 0 | AC19: 0 | AE19: 0 | AF19: 0 | AG19: -1
Z20: 5 | AA20: 6 | AB20: 0 | AC20: 0 | AE20: 0 | AF20: 0 | AG20: -1
Z21: 6 | AA21: 5 | AB21: 0 | AC21: 0 | AE21: 0 | AF21: 0 | AG21: -1
Y22: =Y16+1 -> 1 | Z22: 7 | AA22: =AA16 -> 8 | AB22: =Y$22/AA22 -> 0.125 | AC22: 0.125 | AE22: 0 | AF22: 0 | AG22: -1
Z23: 8 | AA23: =AA17 -> 10 | AB23: 0.1 | AC23: 0.1 | AE23: 0 | AF23: 0 | AG23: -1
Z24: 9 | AA24: 9 | AB24: 0.1111111111 | AC24: 0.11111 | AE24: 0 | AF24: 0 | AG24: -1
Z25: 10 | AA25: 7 | AB25: 0.1428571429 | AC25: 0.14286 | AE25: 0 | AF25: 0 | AG25: -1
Z26: 11 | AA26: 6 | AB26: 0.1666666667 | AC26: 0.16667 | AE26: 0 | AF26: 0 | AG26: -1
Z27: 12 | AA27: 5 | AB27: 0.2 | AC27: 0.2 | AE27: 0 | AF27: 0 | AG27: -1
X29: OPTION B | Z29: Prio | AA29: Antal | AB29: Delta | AC29: EVEN | AD29: Delta | AE29: Delta | AF29: Axis | AG29: Margin
X30: ANALYS | AA30: steg | AC30: steps | AD30: rounded | AE30: rounded | AF30: range
Y31: =2*ROUND(U12,1) -> 0 | Z31: 1 | AA31: =AA22 -> 8 | AB31: =Y$31/AA31 -> 0 | AC31: =(MOD(AA31,2)=0) -> TRUE | AD31: =(INT(AB31*10)+IF((AB31*10-INT(AB31*10))=0,0,1))/10 -> 0 | AE31: =IF(AC31,AD31,AD31+IF(ROUND(MOD(AD31*10,2),6)=0,0,0.1)) -> 0 | AF31: =AA31*AE31 -> 0 | AG31: =AF31/$Y$31-1 -> 
Z32: =Z31+1 -> 2 | AA32: 10 | AB32: 0 | AC32: =(MOD(AA32,2)=0) -> TRUE | AD32: 0 | AE32: =IF(AC32,AD32,AD32+IF(ROUND(MOD(AD32*10,2),6)=0,0,0.1)) -> 0 | AF32: =AA32*AE32 -> 0
Z33: 3 | AA33: 9 | AB33: 0 | AC33: FALSE | AD33: 0 | AE33: 0 | AF33: 0
Z34: 4 | AA34: 7 | AB34: 0 | AC34: FALSE | AD34: 0 | AE34: 0 | AF34: 0
Z35: 5 | AA35: 6 | AB35: 0 | AC35: TRUE | AD35: 0 | AE35: 0 | AF35: 0
Z36: 6 | AA36: 5 | AB36: 0 | AC36: FALSE | AD36: 0 | AE36: 0 | AF36: 0
Z37: 7 | AA37: =AA31 -> 8 | AC37: TRUE | AD37: =AD31+0.1 -> 0.1 | AE37: 0.1 | AF37: 0.8
Z38: 8 | AA38: 10 | AC38: TRUE | AD38: =AD32+0.1 -> 0.1 | AE38: 0.1 | AF38: 1
Z39: 9 | AA39: 9 | AC39: FALSE | AD39: 0.1 | AE39: 0.2 | AF39: 1.8
Z40: 10 | AA40: 7 | AC40: FALSE | AD40: 0.1 | AE40: 0.2 | AF40: 1.4
Z41: 11 | AA41: 6 | AC41: TRUE | AD41: 0.1 | AE41: 0.1 | AF41: 0.6
Z42: 12 | AA42: 5 | AC42: FALSE | AD42: 0.1 | AE42: 0.2 | AF42: 1

Sheet Skiften&Växtföljder - Översikt
F1: ='Grundförutsättningar för skifte'!D15 -> Namn | U1: dran-kommentar | V1: mull-kommentar | W1: dran-falttest | X1: mark-kommentar | Z1: ='Grundförutsättningar för skifte'!E15 -> mat-jordart | AA1: ='Grundförutsättningar för skifte'!F15 -> mullhalt | AB1: ='Grundförutsättningar för skifte'!G15 -> alv-jordart | AC1: ='Grundförutsättningar för skifte'!H15 -> arrondering | AD1: ='Grundförutsättningar för skifte'!I15 -> typ | AE1: ='Grundförutsättningar för skifte'!J15 -> avstånd
F2: =MATCH(F1,INDEX(zT_skiftesdata,1,0),0) -> 2 | U2: =MATCH(U1,INDEX(zT_grundforbattringsindex,1,0),0) -> 11 | V2: =MATCH(V1,INDEX(zT_grundforbattringsindex,1,0),0) -> 14 | W2: =MATCH(W1,INDEX(zT_grundforbattringsindex,1,0),0) -> 9 | X2: =MATCH(X1,INDEX(zT_grundforbattringsindex,1,0),0) -> 18 | Z2: =MATCH(Z1,INDEX(zT_skiftesdata,1,0),0) -> 3 | AA2: 4 | AB2: 5 | AC2: 6 | AD2: 7 | AE2: 8
E8: ÖVERSIKT - SKIFTEN & VÄXTFÖLJDER
C14: BLADNAMN | E14: SKIFTE | G14: SCENARIO | I14: Text för dropdown listor på grafik bladet | M14: RESULTAT AV ODLINGSSYSTEMINDEXET | U14: RESULTAT AV GRUNDFÖRBÄTTRINGSINDEXET | Z14: MATJORD | AB14: ALV | AC14: SKIFTETS | AD14: DRÄNERING
C15: Växtföljd | D15: Mark- | E15: Nr | F15: Namn | G15: Nr | H15: Beskrivning | M15: Rot | N15: Upp- | O15: Organisk | P15: Andel | Q15: Bearbet- | R15: Markbe- | S15: Summa | U15: Finns grundförutsättningar för uthållig odling? | W15: Resultat av fälttest | Z15: JORDART (kornstorlek, mm) | AA15: MULLHALT (viktprocent) | AB15: JORDART (kornstorlek, mm) | AC15: ARRONDERING | AD15: Typ | AE15: Avstånd
D16: bearb. | M16: mängd | N16: torkning | O16: substans | P16: barmark | Q16: ningar | R16: lastning | U16: Dränering | V16: Mullhalt | W16: Dränering | X16: Mark-
X17: struktur
C18: VFblad | D18: MBblad | F18: namn | H18: beskrivning | U18: dran-kommentar | V18: mull-kommentar | W18: dran-falttest | X18: mark-kommentar | Z18: mat-jordart | AA18: mullhalt | AB18: alv-jordart | AC18: =LOWER(AC17) ->  | AD18: typ | AE18: avstånd
A19: =MATCH(IF(E19="","zNull",E19),INDEX(zT_skiftesdata,0,1),0) -> 1 | B19: =MATCH(IF(E19="","zNull",E19),INDEX(zT_grundforbattringsindex,0,1),0) -> 1 | C19: =IF(AND(E19>0,G19>0),CONCATENATE(zT_VFprefix,E19,"-",G19),"") ->  | D19: =IF(AND(E19>0,G19>0),CONCATENATE(zT_MBprefix,E19,"-",G19),"") ->  | F19: =zf_index(zT_skiftesdata,$A19,F$2) ->  | I19: =IF(L19,"",CONCATENATE(E19,"-",G19,": ",F19," (",H19,")")) ->  | K19: =zf_Address("zVBA_Local_FirstTotIndex",C19) ->  | L19: =ISERROR(K19) -> TRUE | M19: =IF(L19,"",INDIRECT($K19)) ->  | N19: =IF(L19,"",OFFSET(INDIRECT($K19),0,1)) ->  | O19: =IF(L19,"",OFFSET(INDIRECT($K19),0,2)) ->  | P19: =IF(L19,"",OFFSET(INDIRECT($K19),0,3)) ->  | Q19: =IF(L19,"",OFFSET(INDIRECT($K19),0,4)) ->  | R19: =IF(L19,"",OFFSET(INDIRECT($K19),0,5)) ->  | S19: =IF(L19,"",OFFSET(INDIRECT($K19),0,6)) ->  | U19: =zf_index(zT_grundforbattringsindex,$B19,U$2) ->  | Z19: =zf_index(zT_skiftesdata,$A19,Z$2) -> 
A20: 1 | B20: 1 | L20: TRUE | M20: =IF(L20,"",INDIRECT($K20)) ->  | N20: =IF(L20,"",OFFSET(INDIRECT($K20),0,1)) ->  | O20: =IF(L20,"",OFFSET(INDIRECT($K20),0,2)) ->  | P20: =IF(L20,"",OFFSET(INDIRECT($K20),0,3)) ->  | Q20: =IF(L20,"",OFFSET(INDIRECT($K20),0,4)) ->  | R20: =IF(L20,"",OFFSET(INDIRECT($K20),0,5)) ->  | S20: =IF(L20,"",OFFSET(INDIRECT($K20),0,6)) -> 
A21: 1 | B21: 1 | L21: =ISERROR(K21) -> TRUE
A22: 1 | B22: 1 | L22: =ISERROR(K22) -> TRUE
A23: 1 | B23: 1 | L23: TRUE
A24: 1 | B24: 1 | L24: TRUE
A25: 1 | B25: 1 | L25: TRUE
A26: 1 | B26: 1 | L26: TRUE
A27: 1 | B27: 1 | L27: TRUE
A28: 1 | B28: 1 | L28: TRUE
A29: 1 | B29: 1 | L29: TRUE | Z29: =zf_index(zT_skiftesdata,$A29,Z$2) -> 
A30: 1 | B30: 1 | L30: TRUE
A31: 1 | B31: 1 | L31: TRUE
A32: 1 | B32: 1 | L32: TRUE
A33: 1 | B33: 1 | L33: TRUE
A34: 1 | B34: 1 | L34: TRUE
A35: 1 | B35: 1 | L35: TRUE
A36: 1 | B36: 1 | L36: TRUE
A37: 1 | B37: 1 | L37: TRUE
A38: 1 | B38: 1 | L38: TRUE
A39: 1 | B39: 1 | L39: TRUE
A40: 1 | B40: 1 | L40: TRUE
A41: 1 | B41: 1 | L41: TRUE
A42: 1 | B42: 1 | L42: TRUE
A43: 1 | B43: 1 | L43: TRUE
A44: 1 | B44: 1 | C44: =IF(AND(E44>0,G44>0),CONCATENATE(zT_VFprefix,E44,"-",G44),"") ->  | D44: =IF(AND(E44>0,G44>0),CONCATENATE(zT_MBprefix,E44,"-",G44),"") ->  | L44: TRUE
A45: 1 | B45: 1 | L45: TRUE | Z45: =zf_index(zT_skiftesdata,$A45,Z$2) -> 
A46: 1 | B46: 1 | L46: TRUE
A47: 1 | B47: 1 | L47: TRUE
A48: 1 | B48: 1 | K48: =zf_Address("zVBA_Local_FirstTotIndex",IF(zVBA_MallTest="På",zT_VFtemplate,C48)) ->  | L48: TRUE

Sheet Grundförbättringsindex
D1: =Tabeller!E36 -> zHeader | F1: =MATCH($D$1,INDEX(zT_jordartstabell,0,1),0) -> 26 | H1: =MATCH($D$1,INDEX(zT_dikesavst_tabell,0,1),0) -> 8 | J1: =MATCH($D$1,INDEX(zT_jordartstabell,0,1),0) -> 26 | L1: =MATCH($D$1,INDEX(zT_faltdrantabell,0,1),0) -> 7 | M1: =MATCH($D$1,INDEX(zT_faltdrantabell,0,1),0) -> 7 | O1: =MATCH($D$1,INDEX(zT_mullhaltstabell,0,1),0) -> 6 | P1: =MATCH($D$1,INDEX(zT_mullhaltstabell,0,1),0) -> 6 | S1: =MATCH($D$1,INDEX(zT_tramp_tabell,0,1),0) -> 8 | T1: =MATCH($D$1,INDEX(zT_tramp_tabell,0,1),0) -> 8
F2: =Tabeller!AA36 -> z_1F | H2: =Tabeller!F81 -> z_3A | J2: =Tabeller!Y36 -> z_1E | L2: =Tabeller!K100 -> z_2B | M2: =Tabeller!H100 -> z_2A | O2: =Tabeller!J47 -> z_4B | P2: =Tabeller!F47 -> z_4A | S2: =Tabeller!H60 -> z_5B | T2: =Tabeller!F60 -> z_5A
F3: =MATCH(F2,INDEX(zT_jordartstabell,F1,0),0) -> 23 | H3: =MATCH(H2,INDEX(zT_dikesavst_tabell,H1,0),0) -> 2 | J3: =MATCH(J2,INDEX(zT_jordartstabell,J1,0),0) -> 21 | L3: =MATCH(L2,INDEX(zT_faltdrantabell,L1,0),0) -> 7 | M3: =MATCH(M2,INDEX(zT_faltdrantabell,M1,0),0) -> 4 | O3: =MATCH(O2,INDEX(zT_mullhaltstabell,O1,0),0) -> 6 | P3: =MATCH(P2,INDEX(zT_mullhaltstabell,P1,0),0) -> 2 | S3: =MATCH(S2,INDEX(zT_tramp_tabell,S1,0),0) -> 4 | T3: =MATCH(T2,INDEX(zT_tramp_tabell,T1,0),0) -> 2
D7: GRUNDFÖRBÄTTRINGSINDEX
C10: SKIFTE | E10: JORDART | J10: DRÄNERING | O10: MULLHALT | R10: MARKSTRUKTUR
C11: Nr | D11: Namn | F11: Dräneringsbehov | G11: Nuvarande | H11: Avstånd | I11: Tilläggsåtgärder | J11: Resultat | K11: Dräneringsbehov fälttest | L11: Klass- | M11: Kommentar | N11: Mullhalt | O11: Klass- | P11: Kommentarer om mullhalt | Q11: Utförda struktur- | R11: Spadtest | S11: Klass- | T11: Kommentar
F12: (m) | G12: dränerings- | H12: om | L12: ning | O12: ning | Q12: befrämjande | R12: (antal | S12: ning | T12: om
G13: status | H13: system- | Q13: grundförbättrings- | R13: tramp) | T13: markstruktur
H14: dikat | Q14: åtgärder
C15: zNull | K15: dran-falttest | M15: dran-kommentar | P15: mull-kommentar | T15: mark-kommentar
C16: 1 | D16: =IF('Grundförutsättningar för skifte'!D16="","",'Grundförutsättningar för skifte'!D16) ->  | E16: =IF('Grundförutsättningar för skifte'!E16="","",'Grundförutsättningar för skifte'!E16) ->  | F16: =IF(E16="","",VLOOKUP(E16,zT_jordartstabell,$F$3,FALSE)) ->  | G16: =IF(D16="","",'Grundförutsättningar för skifte'!I16) ->  | H16: =IF(G16="Systemtäckdikat",IF('Grundförutsättningar för skifte'!J16="","",'Grundförutsättningar för skifte'!J16),"") ->  | J16: =IF(D16="","",IF(G16="Ej rördikat",zT_DraneringsBehov_Ja,IF(G16="Systemtäckdikat",IF(VLOOKUP(H16,zT_dikesavst_tabell,$H$3,FALSE)>VLOOKUP(E16,zT_jordartstabell,$J$3,FALSE),zT_DraneringsBehov_Ja,zT_DraneringsBehov_Nej),IF(VLOOKUP(E16,zT_jordartstabell,$J$3,FALSE)="Behovs",zT_DraneringsBehov_Nej,zT_DraneringsBehov_Ja)))) ->  | L16: =IF(K16="","",VLOOKUP(K16,zT_faltdrantabell,$L$3,FALSE)) ->  | M16: =IF(K16="","",VLOOKUP(K16,zT_faltdrantabell,$M$3,FALSE)) ->  | N16: =IF('Grundförutsättningar för skifte'!F16="","",'Grundförutsättningar för skifte'!F16) ->  | O16: =IF('Grundförutsättningar för skifte'!D16="","",VLOOKUP('Grundförutsättningar för skifte'!F16,zT_mullhaltstabell,$O$3,FALSE)) ->  | P16: =IF('Grundförutsättningar för skifte'!D16="","",VLOOKUP('Grundförutsättningar för skifte'!F16,zT_mullhaltstabell,$P$3,FALSE)) ->  | R16: 4-5 | S16: =IF('Grundförutsättningar för skifte'!D16="","",VLOOKUP(R16,zT_tramp_tabell,$S$3,FALSE)) ->  | T16: =IF('Grundförutsättningar för skifte'!D16="","",VLOOKUP(R16,zT_tramp_tabell,$T$3,FALSE)) -> 
C17: 2 | D17: =IF('Grundförutsättningar för skifte'!D17="","",'Grundförutsättningar för skifte'!D17) ->  | E17: =IF('Grundförutsättningar för skifte'!E17="","",'Grundförutsättningar för skifte'!E17) ->  | G17: =IF(D17="","",'Grundförutsättningar för skifte'!I17) ->  | H17: =IF(G17="Systemtäckdikat",IF('Grundförutsättningar för skifte'!J17="","",'Grundförutsättningar för skifte'!J17),"") ->  | N17: =IF('Grundförutsättningar för skifte'!F17="","",'Grundförutsättningar för skifte'!F17) ->  | O17: =IF('Grundförutsättningar för skifte'!D17="","",VLOOKUP('Grundförutsättningar för skifte'!F17,zT_mullhaltstabell,$O$3,FALSE)) ->  | P17: =IF('Grundförutsättningar för skifte'!D17="","",VLOOKUP('Grundförutsättningar för skifte'!F17,zT_mullhaltstabell,$P$3,FALSE)) ->  | R17: 1 | S17: =IF('Grundförutsättningar för skifte'!D17="","",VLOOKUP(R17,zT_tramp_tabell,$S$3,FALSE)) ->  | T17: =IF('Grundförutsättningar för skifte'!D17="","",VLOOKUP(R17,zT_tramp_tabell,$T$3,FALSE)) -> 
C18: 3 | D18: =IF('Grundförutsättningar för skifte'!D18="","",'Grundförutsättningar för skifte'!D18) ->  | E18: =IF('Grundförutsättningar för skifte'!E18="","",'Grundförutsättningar för skifte'!E18) ->  | G18: =IF(D18="","",'Grundförutsättningar för skifte'!I18) ->  | H18: =IF(G18="Systemtäckdikat",IF('Grundförutsättningar för skifte'!J18="","",'Grundförutsättningar för skifte'!J18),"") ->  | N18: =IF('Grundförutsättningar för skifte'!F18="","",'Grundförutsättningar för skifte'!F18) ->  | O18: =IF('Grundförutsättningar för skifte'!D18="","",VLOOKUP('Grundförutsättningar för skifte'!F18,zT_mullhaltstabell,$O$3,FALSE)) ->  | P18: =IF('Grundförutsättningar för skifte'!D18="","",VLOOKUP('Grundförutsättningar för skifte'!F18,zT_mullhaltstabell,$P$3,FALSE)) ->  | S18: =IF('Grundförutsättningar för skifte'!D18="","",VLOOKUP(R18,zT_tramp_tabell,$S$3,FALSE)) ->  | T18: =IF('Grundförutsättningar för skifte'!D18="","",VLOOKUP(R18,zT_tramp_tabell,$T$3,FALSE)) -> 
C19: 4 | D19: =IF('Grundförutsättningar för skifte'!D19="","",'Grundförutsättningar för skifte'!D19) ->  | E19: =IF('Grundförutsättningar för skifte'!E19="","",'Grundförutsättningar för skifte'!E19) ->  | G19: =IF(D19="","",'Grundförutsättningar för skifte'!I19) ->  | H19: =IF(G19="Systemtäckdikat",IF('Grundförutsättningar för skifte'!J19="","",'Grundförutsättningar för skifte'!J19),"") ->  | N19: =IF('Grundförutsättningar för skifte'!F19="","",'Grundförutsättningar för skifte'!F19) ->  | O19: =IF('Grundförutsättningar för skifte'!D19="","",VLOOKUP('Grundförutsättningar för skifte'!F19,zT_mullhaltstabell,$O$3,FALSE)) ->  | P19: =IF('Grundförutsättningar för skifte'!D19="","",VLOOKUP('Grundförutsättningar för skifte'!F19,zT_mullhaltstabell,$P$3,FALSE)) ->  | S19: =IF('Grundförutsättningar för skifte'!D19="","",VLOOKUP(R19,zT_tramp_tabell,$S$3,FALSE)) ->  | T19: =IF('Grundförutsättningar för skifte'!D19="","",VLOOKUP(R19,zT_tramp_tabell,$T$3,FALSE)) -> 
C20: 5 | D20: =IF('Grundförutsättningar för skifte'!D20="","",'Grundförutsättningar för skifte'!D20) ->  | E20: =IF('Grundförutsättningar för skifte'!E20="","",'Grundförutsättningar för skifte'!E20) ->  | G20: =IF(D20="","",'Grundförutsättningar för skifte'!I20) ->  | H20: =IF(G20="Systemtäckdikat",IF('Grundförutsättningar för skifte'!J20="","",'Grundförutsättningar för skifte'!J20),"") ->  | N20: =IF('Grundförutsättningar för skifte'!F20="","",'Grundförutsättningar för skifte'!F20) ->  | O20: =IF('Grundförutsättningar för skifte'!D20="","",VLOOKUP('Grundförutsättningar för skifte'!F20,zT_mullhaltstabell,$O$3,FALSE)) ->  | P20: =IF('Grundförutsättningar för skifte'!D20="","",VLOOKUP('Grundförutsättningar för skifte'!F20,zT_mullhaltstabell,$P$3,FALSE)) ->  | S20: =IF('Grundförutsättningar för skifte'!D20="","",VLOOKUP(R20,zT_tramp_tabell,$S$3,FALSE)) ->  | T20: =IF('Grundförutsättningar för skifte'!D20="","",VLOOKUP(R20,zT_tramp_tabell,$T$3,FALSE)) -> 
C21: 6 | D21: =IF('Grundförutsättningar för skifte'!D21="","",'Grundförutsättningar för skifte'!D21) ->  | E21: =IF('Grundförutsättningar för skifte'!E21="","",'Grundförutsättningar för skifte'!E21) ->  | G21: =IF(D21="","",'Grundförutsättningar för skifte'!I21) ->  | H21: =IF(G21="Systemtäckdikat",IF('Grundförutsättningar för skifte'!J21="","",'Grundförutsättningar för skifte'!J21),"") ->  | N21: =IF('Grundförutsättningar för skifte'!F21="","",'Grundförutsättningar för skifte'!F21) ->  | O21: =IF('Grundförutsättningar för skifte'!D21="","",VLOOKUP('Grundförutsättningar för skifte'!F21,zT_mullhaltstabell,$O$3,FALSE)) ->  | P21: =IF('Grundförutsättningar för skifte'!D21="","",VLOOKUP('Grundförutsättningar för skifte'!F21,zT_mullhaltstabell,$P$3,FALSE)) ->  | S21: =IF('Grundförutsättningar för skifte'!D21="","",VLOOKUP(R21,zT_tramp_tabell,$S$3,FALSE)) ->  | T21: =IF('Grundförutsättningar för skifte'!D21="","",VLOOKUP(R21,zT_tramp_tabell,$T$3,FALSE)) -> 
C22: 7 | D22: =IF('Grundförutsättningar för skifte'!D22="","",'Grundförutsättningar för skifte'!D22) ->  | E22: =IF('Grundförutsättningar för skifte'!E22="","",'Grundförutsättningar för skifte'!E22) ->  | G22: =IF(D22="","",'Grundförutsättningar för skifte'!I22) ->  | H22: =IF(G22="Systemtäckdikat",IF('Grundförutsättningar för skifte'!J22="","",'Grundförutsättningar för skifte'!J22),"") ->  | N22: =IF('Grundförutsättningar för skifte'!F22="","",'Grundförutsättningar för skifte'!F22) ->  | O22: =IF('Grundförutsättningar för skifte'!D22="","",VLOOKUP('Grundförutsättningar för skifte'!F22,zT_mullhaltstabell,$O$3,FALSE)) ->  | P22: =IF('Grundförutsättningar för skifte'!D22="","",VLOOKUP('Grundförutsättningar för skifte'!F22,zT_mullhaltstabell,$P$3,FALSE)) ->  | S22: =IF('Grundförutsättningar för skifte'!D22="","",VLOOKUP(R22,zT_tramp_tabell,$S$3,FALSE)) ->  | T22: =IF('Grundförutsättningar för skifte'!D22="","",VLOOKUP(R22,zT_tramp_tabell,$T$3,FALSE)) -> 
C23: 8 | D23: =IF('Grundförutsättningar för skifte'!D23="","",'Grundförutsättningar för skifte'!D23) ->  | E23: =IF('Grundförutsättningar för skifte'!E23="","",'Grundförutsättningar för skifte'!E23) ->  | G23: =IF(D23="","",'Grundförutsättningar för skifte'!I23) ->  | H23: =IF(G23="Systemtäckdikat",IF('Grundförutsättningar för skifte'!J23="","",'Grundförutsättningar för skifte'!J23),"") ->  | N23: =IF('Grundförutsättningar för skifte'!F23="","",'Grundförutsättningar för skifte'!F23) ->  | O23: =IF('Grundförutsättningar för skifte'!D23="","",VLOOKUP('Grundförutsättningar för skifte'!F23,zT_mullhaltstabell,$O$3,FALSE)) ->  | P23: =IF('Grundförutsättningar för skifte'!D23="","",VLOOKUP('Grundförutsättningar för skifte'!F23,zT_mullhaltstabell,$P$3,FALSE)) ->  | S23: =IF('Grundförutsättningar för skifte'!D23="","",VLOOKUP(R23,zT_tramp_tabell,$S$3,FALSE)) ->  | T23: =IF('Grundförutsättningar för skifte'!D23="","",VLOOKUP(R23,zT_tramp_tabell,$T$3,FALSE)) -> 
C24: 9 | D24: =IF('Grundförutsättningar för skifte'!D24="","",'Grundförutsättningar för skifte'!D24) ->  | E24: =IF('Grundförutsättningar för skifte'!E24="","",'Grundförutsättningar för skifte'!E24) ->  | G24: =IF(D24="","",'Grundförutsättningar för skifte'!I24) ->  | H24: =IF(G24="Systemtäckdikat",IF('Grundförutsättningar för skifte'!J24="","",'Grundförutsättningar för skifte'!J24),"") ->  | N24: =IF('Grundförutsättningar för skifte'!F24="","",'Grundförutsättningar för skifte'!F24) ->  | O24: =IF('Grundförutsättningar för skifte'!D24="","",VLOOKUP('Grundförutsättningar för skifte'!F24,zT_mullhaltstabell,$O$3,FALSE)) ->  | P24: =IF('Grundförutsättningar för skifte'!D24="","",VLOOKUP('Grundförutsättningar för skifte'!F24,zT_mullhaltstabell,$P$3,FALSE)) ->  | S24: =IF('Grundförutsättningar för skifte'!D24="","",VLOOKUP(R24,zT_tramp_tabell,$S$3,FALSE)) ->  | T24: =IF('Grundförutsättningar för skifte'!D24="","",VLOOKUP(R24,zT_tramp_tabell,$T$3,FALSE)) -> 
C25: 10 | D25: =IF('Grundförutsättningar för skifte'!D25="","",'Grundförutsättningar för skifte'!D25) ->  | E25: =IF('Grundförutsättningar för skifte'!E25="","",'Grundförutsättningar för skifte'!E25) ->  | G25: =IF(D25="","",'Grundförutsättningar för skifte'!I25) ->  | H25: =IF(G25="Systemtäckdikat",IF('Grundförutsättningar för skifte'!J25="","",'Grundförutsättningar för skifte'!J25),"") ->  | N25: =IF('Grundförutsättningar för skifte'!F25="","",'Grundförutsättningar för skifte'!F25) ->  | O25: =IF('Grundförutsättningar för skifte'!D25="","",VLOOKUP('Grundförutsättningar för skifte'!F25,zT_mullhaltstabell,$O$3,FALSE)) ->  | P25: =IF('Grundförutsättningar för skifte'!D25="","",VLOOKUP('Grundförutsättningar för skifte'!F25,zT_mullhaltstabell,$P$3,FALSE)) ->  | S25: =IF('Grundförutsättningar för skifte'!D25="","",VLOOKUP(R25,zT_tramp_tabell,$S$3,FALSE)) ->  | T25: =IF('Grundförutsättningar för skifte'!D25="","",VLOOKUP(R25,zT_tramp_tabell,$T$3,FALSE)) -> 
C26: 11 | D26: =IF('Grundförutsättningar för skifte'!D26="","",'Grundförutsättningar för skifte'!D26) ->  | E26: =IF('Grundförutsättningar för skifte'!E26="","",'Grundförutsättningar för skifte'!E26) ->  | G26: =IF(D26="","",'Grundförutsättningar för skifte'!I26) ->  | H26: =IF(G26="Systemtäckdikat",IF('Grundförutsättningar för skifte'!J26="","",'Grundförutsättningar för skifte'!J26),"") ->  | N26: =IF('Grundförutsättningar för skifte'!F26="","",'Grundförutsättningar för skifte'!F26) ->  | O26: =IF('Grundförutsättningar för skifte'!D26="","",VLOOKUP('Grundförutsättningar för skifte'!F26,zT_mullhaltstabell,$O$3,FALSE)) ->  | P26: =IF('Grundförutsättningar för skifte'!D26="","",VLOOKUP('Grundförutsättningar för skifte'!F26,zT_mullhaltstabell,$P$3,FALSE)) ->  | S26: =IF('Grundförutsättningar för skifte'!D26="","",VLOOKUP(R26,zT_tramp_tabell,$S$3,FALSE)) ->  | T26: =IF('Grundförutsättningar för skifte'!D26="","",VLOOKUP(R26,zT_tramp_tabell,$T$3,FALSE)) -> 
C27: 12 | D27: =IF('Grundförutsättningar för skifte'!D27="","",'Grundförutsättningar för skifte'!D27) ->  | E27: =IF('Grundförutsättningar för skifte'!E27="","",'Grundförutsättningar för skifte'!E27) ->  | G27: =IF(D27="","",'Grundförutsättningar för skifte'!I27) ->  | H27: =IF(G27="Systemtäckdikat",IF('Grundförutsättningar för skifte'!J27="","",'Grundförutsättningar för skifte'!J27),"") ->  | N27: =IF('Grundförutsättningar för skifte'!F27="","",'Grundförutsättningar för skifte'!F27) ->  | O27: =IF('Grundförutsättningar för skifte'!D27="","",VLOOKUP('Grundförutsättningar för skifte'!F27,zT_mullhaltstabell,$O$3,FALSE)) ->  | P27: =IF('Grundförutsättningar för skifte'!D27="","",VLOOKUP('Grundförutsättningar för skifte'!F27,zT_mullhaltstabell,$P$3,FALSE)) ->  | S27: =IF('Grundförutsättningar för skifte'!D27="","",VLOOKUP(R27,zT_tramp_tabell,$S$3,FALSE)) ->  | T27: =IF('Grundförutsättningar för skifte'!D27="","",VLOOKUP(R27,zT_tramp_tabell,$T$3,FALSE)) -> 
C28: 13 | D28: =IF('Grundförutsättningar för skifte'!D28="","",'Grundförutsättningar för skifte'!D28) ->  | E28: =IF('Grundförutsättningar för skifte'!E28="","",'Grundförutsättningar för skifte'!E28) ->  | G28: =IF(D28="","",'Grundförutsättningar för skifte'!I28) ->  | H28: =IF(G28="Systemtäckdikat",IF('Grundförutsättningar för skifte'!J28="","",'Grundförutsättningar för skifte'!J28),"") ->  | N28: =IF('Grundförutsättningar för skifte'!F28="","",'Grundförutsättningar för skifte'!F28) ->  | O28: =IF('Grundförutsättningar för skifte'!D28="","",VLOOKUP('Grundförutsättningar för skifte'!F28,zT_mullhaltstabell,$O$3,FALSE)) ->  | P28: =IF('Grundförutsättningar för skifte'!D28="","",VLOOKUP('Grundförutsättningar för skifte'!F28,zT_mullhaltstabell,$P$3,FALSE)) ->  | S28: =IF('Grundförutsättningar för skifte'!D28="","",VLOOKUP(R28,zT_tramp_tabell,$S$3,FALSE)) ->  | T28: =IF('Grundförutsättningar för skifte'!D28="","",VLOOKUP(R28,zT_tramp_tabell,$T$3,FALSE)) -> 
C29: 14 | D29: =IF('Grundförutsättningar för skifte'!D29="","",'Grundförutsättningar för skifte'!D29) ->  | E29: =IF('Grundförutsättningar för skifte'!E29="","",'Grundförutsättningar för skifte'!E29) ->  | G29: =IF(D29="","",'Grundförutsättningar för skifte'!I29) ->  | H29: =IF(G29="Systemtäckdikat",IF('Grundförutsättningar för skifte'!J29="","",'Grundförutsättningar för skifte'!J29),"") ->  | N29: =IF('Grundförutsättningar för skifte'!F29="","",'Grundförutsättningar för skifte'!F29) ->  | O29: =IF('Grundförutsättningar för skifte'!D29="","",VLOOKUP('Grundförutsättningar för skifte'!F29,zT_mullhaltstabell,$O$3,FALSE)) ->  | P29: =IF('Grundförutsättningar för skifte'!D29="","",VLOOKUP('Grundförutsättningar för skifte'!F29,zT_mullhaltstabell,$P$3,FALSE)) ->  | S29: =IF('Grundförutsättningar för skifte'!D29="","",VLOOKUP(R29,zT_tramp_tabell,$S$3,FALSE)) ->  | T29: =IF('Grundförutsättningar för skifte'!D29="","",VLOOKUP(R29,zT_tramp_tabell,$T$3,FALSE)) -> 
C30: 15 | D30: =IF('Grundförutsättningar för skifte'!D30="","",'Grundförutsättningar för skifte'!D30) ->  | E30: =IF('Grundförutsättningar för skifte'!E30="","",'Grundförutsättningar för skifte'!E30) ->  | G30: =IF(D30="","",'Grundförutsättningar för skifte'!I30) ->  | H30: =IF(G30="Systemtäckdikat",IF('Grundförutsättningar för skifte'!J30="","",'Grundförutsättningar för skifte'!J30),"") ->  | N30: =IF('Grundförutsättningar för skifte'!F30="","",'Grundförutsättningar för skifte'!F30) ->  | O30: =IF('Grundförutsättningar för skifte'!D30="","",VLOOKUP('Grundförutsättningar för skifte'!F30,zT_mullhaltstabell,$O$3,FALSE)) ->  | P30: =IF('Grundförutsättningar för skifte'!D30="","",VLOOKUP('Grundförutsättningar för skifte'!F30,zT_mullhaltstabell,$P$3,FALSE)) ->  | S30: =IF('Grundförutsättningar för skifte'!D30="","",VLOOKUP(R30,zT_tramp_tabell,$S$3,FALSE)) ->  | T30: =IF('Grundförutsättningar för skifte'!D30="","",VLOOKUP(R30,zT_tramp_tabell,$T$3,FALSE)) -> 
C31: 16 | D31: =IF('Grundförutsättningar för skifte'!D31="","",'Grundförutsättningar för skifte'!D31) ->  | E31: =IF('Grundförutsättningar för skifte'!E31="","",'Grundförutsättningar för skifte'!E31) ->  | G31: =IF(D31="","",'Grundförutsättningar för skifte'!I31) ->  | H31: =IF(G31="Systemtäckdikat",IF('Grundförutsättningar för skifte'!J31="","",'Grundförutsättningar för skifte'!J31),"") ->  | N31: =IF('Grundförutsättningar för skifte'!F31="","",'Grundförutsättningar för skifte'!F31) ->  | O31: =IF('Grundförutsättningar för skifte'!D31="","",VLOOKUP('Grundförutsättningar för skifte'!F31,zT_mullhaltstabell,$O$3,FALSE)) ->  | P31: =IF('Grundförutsättningar för skifte'!D31="","",VLOOKUP('Grundförutsättningar för skifte'!F31,zT_mullhaltstabell,$P$3,FALSE)) ->  | S31: =IF('Grundförutsättningar för skifte'!D31="","",VLOOKUP(R31,zT_tramp_tabell,$S$3,FALSE)) ->  | T31: =IF('Grundförutsättningar för skifte'!D31="","",VLOOKUP(R31,zT_tramp_tabell,$T$3,FALSE)) -> 
C32: 17 | D32: =IF('Grundförutsättningar för skifte'!D32="","",'Grundförutsättningar för skifte'!D32) ->  | E32: =IF('Grundförutsättningar för skifte'!E32="","",'Grundförutsättningar för skifte'!E32) ->  | G32: =IF(D32="","",'Grundförutsättningar för skifte'!I32) ->  | H32: =IF(G32="Systemtäckdikat",IF('Grundförutsättningar för skifte'!J32="","",'Grundförutsättningar för skifte'!J32),"") ->  | N32: =IF('Grundförutsättningar för skifte'!F32="","",'Grundförutsättningar för skifte'!F32) ->  | O32: =IF('Grundförutsättningar för skifte'!D32="","",VLOOKUP('Grundförutsättningar för skifte'!F32,zT_mullhaltstabell,$O$3,FALSE)) ->  | P32: =IF('Grundförutsättningar för skifte'!D32="","",VLOOKUP('Grundförutsättningar för skifte'!F32,zT_mullhaltstabell,$P$3,FALSE)) ->  | S32: =IF('Grundförutsättningar för skifte'!D32="","",VLOOKUP(R32,zT_tramp_tabell,$S$3,FALSE)) ->  | T32: =IF('Grundförutsättningar för skifte'!D32="","",VLOOKUP(R32,zT_tramp_tabell,$T$3,FALSE)) -> 
C33: 18 | D33: =IF('Grundförutsättningar för skifte'!D33="","",'Grundförutsättningar för skifte'!D33) ->  | E33: =IF('Grundförutsättningar för skifte'!E33="","",'Grundförutsättningar för skifte'!E33) ->  | G33: =IF(D33="","",'Grundförutsättningar för skifte'!I33) ->  | H33: =IF(G33="Systemtäckdikat",IF('Grundförutsättningar för skifte'!J33="","",'Grundförutsättningar för skifte'!J33),"") ->  | N33: =IF('Grundförutsättningar för skifte'!F33="","",'Grundförutsättningar för skifte'!F33) ->  | O33: =IF('Grundförutsättningar för skifte'!D33="","",VLOOKUP('Grundförutsättningar för skifte'!F33,zT_mullhaltstabell,$O$3,FALSE)) ->  | P33: =IF('Grundförutsättningar för skifte'!D33="","",VLOOKUP('Grundförutsättningar för skifte'!F33,zT_mullhaltstabell,$P$3,FALSE)) ->  | S33: =IF('Grundförutsättningar för skifte'!D33="","",VLOOKUP(R33,zT_tramp_tabell,$S$3,FALSE)) ->  | T33: =IF('Grundförutsättningar för skifte'!D33="","",VLOOKUP(R33,zT_tramp_tabell,$T$3,FALSE)) -> 
C34: 19 | D34: =IF('Grundförutsättningar för skifte'!D34="","",'Grundförutsättningar för skifte'!D34) ->  | E34: =IF('Grundförutsättningar för skifte'!E34="","",'Grundförutsättningar för skifte'!E34) ->  | G34: =IF(D34="","",'Grundförutsättningar för skifte'!I34) ->  | H34: =IF(G34="Systemtäckdikat",IF('Grundförutsättningar för skifte'!J34="","",'Grundförutsättningar för skifte'!J34),"") ->  | N34: =IF('Grundförutsättningar för skifte'!F34="","",'Grundförutsättningar för skifte'!F34) ->  | O34: =IF('Grundförutsättningar för skifte'!D34="","",VLOOKUP('Grundförutsättningar för skifte'!F34,zT_mullhaltstabell,$O$3,FALSE)) ->  | P34: =IF('Grundförutsättningar för skifte'!D34="","",VLOOKUP('Grundförutsättningar för skifte'!F34,zT_mullhaltstabell,$P$3,FALSE)) ->  | S34: =IF('Grundförutsättningar för skifte'!D34="","",VLOOKUP(R34,zT_tramp_tabell,$S$3,FALSE)) ->  | T34: =IF('Grundförutsättningar för skifte'!D34="","",VLOOKUP(R34,zT_tramp_tabell,$T$3,FALSE)) -> 
C35: 20 | D35: =IF('Grundförutsättningar för skifte'!D35="","",'Grundförutsättningar för skifte'!D35) ->  | E35: =IF('Grundförutsättningar för skifte'!E35="","",'Grundförutsättningar för skifte'!E35) ->  | G35: =IF(D35="","",'Grundförutsättningar för skifte'!I35) ->  | H35: =IF(G35="Systemtäckdikat",IF('Grundförutsättningar för skifte'!J35="","",'Grundförutsättningar för skifte'!J35),"") ->  | N35: =IF('Grundförutsättningar för skifte'!F35="","",'Grundförutsättningar för skifte'!F35) ->  | O35: =IF('Grundförutsättningar för skifte'!D35="","",VLOOKUP('Grundförutsättningar för skifte'!F35,zT_mullhaltstabell,$O$3,FALSE)) ->  | P35: =IF('Grundförutsättningar för skifte'!D35="","",VLOOKUP('Grundförutsättningar för skifte'!F35,zT_mullhaltstabell,$P$3,FALSE)) ->  | S35: =IF('Grundförutsättningar för skifte'!D35="","",VLOOKUP(R35,zT_tramp_tabell,$S$3,FALSE)) ->  | T35: =IF('Grundförutsättningar för skifte'!D35="","",VLOOKUP(R35,zT_tramp_tabell,$T$3,FALSE)) -> 
C36: 21 | D36: =IF('Grundförutsättningar för skifte'!D36="","",'Grundförutsättningar för skifte'!D36) ->  | E36: =IF('Grundförutsättningar för skifte'!E36="","",'Grundförutsättningar för skifte'!E36) ->  | G36: =IF(D36="","",'Grundförutsättningar för skifte'!I36) ->  | H36: =IF(G36="Systemtäckdikat",IF('Grundförutsättningar för skifte'!J36="","",'Grundförutsättningar för skifte'!J36),"") ->  | N36: =IF('Grundförutsättningar för skifte'!F36="","",'Grundförutsättningar för skifte'!F36) ->  | O36: =IF('Grundförutsättningar för skifte'!D36="","",VLOOKUP('Grundförutsättningar för skifte'!F36,zT_mullhaltstabell,$O$3,FALSE)) ->  | P36: =IF('Grundförutsättningar för skifte'!D36="","",VLOOKUP('Grundförutsättningar för skifte'!F36,zT_mullhaltstabell,$P$3,FALSE)) ->  | S36: =IF('Grundförutsättningar för skifte'!D36="","",VLOOKUP(R36,zT_tramp_tabell,$S$3,FALSE)) ->  | T36: =IF('Grundförutsättningar för skifte'!D36="","",VLOOKUP(R36,zT_tramp_tabell,$T$3,FALSE)) -> 
C37: 22 | D37: =IF('Grundförutsättningar för skifte'!D37="","",'Grundförutsättningar för skifte'!D37) ->  | E37: =IF('Grundförutsättningar för skifte'!E37="","",'Grundförutsättningar för skifte'!E37) ->  | G37: =IF(D37="","",'Grundförutsättningar för skifte'!I37) ->  | H37: =IF(G37="Systemtäckdikat",IF('Grundförutsättningar för skifte'!J37="","",'Grundförutsättningar för skifte'!J37),"") ->  | N37: =IF('Grundförutsättningar för skifte'!F37="","",'Grundförutsättningar för skifte'!F37) ->  | O37: =IF('Grundförutsättningar för skifte'!D37="","",VLOOKUP('Grundförutsättningar för skifte'!F37,zT_mullhaltstabell,$O$3,FALSE)) ->  | P37: =IF('Grundförutsättningar för skifte'!D37="","",VLOOKUP('Grundförutsättningar för skifte'!F37,zT_mullhaltstabell,$P$3,FALSE)) ->  | S37: =IF('Grundförutsättningar för skifte'!D37="","",VLOOKUP(R37,zT_tramp_tabell,$S$3,FALSE)) ->  | T37: =IF('Grundförutsättningar för skifte'!D37="","",VLOOKUP(R37,zT_tramp_tabell,$T$3,FALSE)) -> 
C38: 23 | D38: =IF('Grundförutsättningar för skifte'!D38="","",'Grundförutsättningar för skifte'!D38) ->  | E38: =IF('Grundförutsättningar för skifte'!E38="","",'Grundförutsättningar för skifte'!E38) ->  | G38: =IF(D38="","",'Grundförutsättningar för skifte'!I38) ->  | H38: =IF(G38="Systemtäckdikat",IF('Grundförutsättningar för skifte'!J38="","",'Grundförutsättningar för skifte'!J38),"") ->  | N38: =IF('Grundförutsättningar för skifte'!F38="","",'Grundförutsättningar för skifte'!F38) ->  | O38: =IF('Grundförutsättningar för skifte'!D38="","",VLOOKUP('Grundförutsättningar för skifte'!F38,zT_mullhaltstabell,$O$3,FALSE)) ->  | P38: =IF('Grundförutsättningar för skifte'!D38="","",VLOOKUP('Grundförutsättningar för skifte'!F38,zT_mullhaltstabell,$P$3,FALSE)) ->  | S38: =IF('Grundförutsättningar för skifte'!D38="","",VLOOKUP(R38,zT_tramp_tabell,$S$3,FALSE)) ->  | T38: =IF('Grundförutsättningar för skifte'!D38="","",VLOOKUP(R38,zT_tramp_tabell,$T$3,FALSE)) -> 
C39: 24 | D39: =IF('Grundförutsättningar för skifte'!D39="","",'Grundförutsättningar för skifte'!D39) ->  | E39: =IF('Grundförutsättningar för skifte'!E39="","",'Grundförutsättningar för skifte'!E39) ->  | G39: =IF(D39="","",'Grundförutsättningar för skifte'!I39) ->  | H39: =IF(G39="Systemtäckdikat",IF('Grundförutsättningar för skifte'!J39="","",'Grundförutsättningar för skifte'!J39),"") ->  | N39: =IF('Grundförutsättningar för skifte'!F39="","",'Grundförutsättningar för skifte'!F39) ->  | O39: =IF('Grundförutsättningar för skifte'!D39="","",VLOOKUP('Grundförutsättningar för skifte'!F39,zT_mullhaltstabell,$O$3,FALSE)) ->  | P39: =IF('Grundförutsättningar för skifte'!D39="","",VLOOKUP('Grundförutsättningar för skifte'!F39,zT_mullhaltstabell,$P$3,FALSE)) ->  | S39: =IF('Grundförutsättningar för skifte'!D39="","",VLOOKUP(R39,zT_tramp_tabell,$S$3,FALSE)) ->  | T39: =IF('Grundförutsättningar för skifte'!D39="","",VLOOKUP(R39,zT_tramp_tabell,$T$3,FALSE)) -> 
C40: 25 | D40: =IF('Grundförutsättningar för skifte'!D40="","",'Grundförutsättningar för skifte'!D40) ->  | E40: =IF('Grundförutsättningar för skifte'!E40="","",'Grundförutsättningar för skifte'!E40) ->  | G40: =IF(D40="","",'Grundförutsättningar för skifte'!I40) ->  | H40: =IF(G40="Systemtäckdikat",IF('Grundförutsättningar för skifte'!J40="","",'Grundförutsättningar för skifte'!J40),"") ->  | N40: =IF('Grundförutsättningar för skifte'!F40="","",'Grundförutsättningar för skifte'!F40) ->  | O40: =IF('Grundförutsättningar för skifte'!D40="","",VLOOKUP('Grundförutsättningar för skifte'!F40,zT_mullhaltstabell,$O$3,FALSE)) ->  | P40: =IF('Grundförutsättningar för skifte'!D40="","",VLOOKUP('Grundförutsättningar för skifte'!F40,zT_mullhaltstabell,$P$3,FALSE)) ->  | S40: =IF('Grundförutsättningar för skifte'!D40="","",VLOOKUP(R40,zT_tramp_tabell,$S$3,FALSE)) ->  | T40: =IF('Grundförutsättningar för skifte'!D40="","",VLOOKUP(R40,zT_tramp_tabell,$T$3,FALSE)) -> 

Sheet Hur mår din jord
F2: =MATCH(F3,INDEX(zT_HurMarDinJord_QnA,0,1),0) -> 1 | G2: =MATCH(G3,INDEX(zT_HurMarDinJord_QnA,0,1),0) -> 11 | H2: =MATCH(H3,INDEX(zT_HurMarDinJord_QnA,0,1),0) -> 21 | I2: =MATCH(I3,INDEX(zT_HurMarDinJord_QnA,0,1),0) -> 31 | J2: =MATCH(J3,INDEX(zT_HurMarDinJord_QnA,0,1),0) -> 41
F3: Fråga 1: | G3: Fråga 3: | H3: Fråga 5: | I3: Fråga 7: | J3: Fråga 9:
F4: =INDEX(zT_HurMarDinJord_QnA,F$2,2) -> Har jorden bra struktur och fint bruk? | G4: =INDEX(zT_HurMarDinJord_QnA,G$2,2) -> Är det lätt att bearbeta jorden? | H4: =INDEX(zT_HurMarDinJord_QnA,H$2,2) -> Finns det rikligt med dagg maskar? | I4: =INDEX(zT_HurMarDinJord_QnA,I$2,2) -> Är grödor och ogräs friska och frodiga? | J4: =INDEX(zT_HurMarDinJord_QnA,J$2,2) -> Infiltrerar vatten snabbt?
F5: =INDEX(zT_HurMarDinJord_QnA,F$2+1,2) -> Kokigt, pulvrigt, massivt eller skiktat | G5: =INDEX(zT_HurMarDinJord_QnA,G$2+1,2) -> Många överfarter och stort dragkraftbehov | H5: =INDEX(zT_HurMarDinJord_QnA,H$2+1,2) -> Inga daggmaskar | I5: =INDEX(zT_HurMarDinJord_QnA,I$2+1,2) -> Hämmad tillväxt, missfärgning, ojämna bestånd | J5: =INDEX(zT_HurMarDinJord_QnA,J$2+1,2) -> Stående vatten kvar länge efter lätt regn
F6: =INDEX(zT_HurMarDinJord_QnA,F$2+2,2) -> En del smuliga (granulära) aggregat syns | G6: =INDEX(zT_HurMarDinJord_QnA,G$2+2,2) -> Medel | H6: =INDEX(zT_HurMarDinJord_QnA,H$2+2,2) -> Några daggmaskar och maskgångar | I6: =INDEX(zT_HurMarDinJord_QnA,I$2+2,2) -> Något ojämn tillväxt, lite missfärgning | J6: =INDEX(zT_HurMarDinJord_QnA,J$2+2,2) -> Vattnet rinner undan sakta, lite pölar
F7: =INDEX(zT_HurMarDinJord_QnA,F$2+3,2) -> Porösa granulära aggregat | G7: =INDEX(zT_HurMarDinJord_QnA,G$2+3,2) -> Lättbearbetad jord, litet dragkraftbehov | H7: =INDEX(zT_HurMarDinJord_QnA,H$2+3,2) -> Många daggmaskar, maskgångar | I7: =INDEX(zT_HurMarDinJord_QnA,I$2+3,2) -> Frisk, frodig och jämn gröda | J7: =INDEX(zT_HurMarDinJord_QnA,J$2+3,2) -> Inga pölar efter stora regn eller bevattning
F9: =MATCH(F10,INDEX(zT_HurMarDinJord_QnA,0,1),0) -> 6 | G9: =MATCH(G10,INDEX(zT_HurMarDinJord_QnA,0,1),0) -> 16 | H9: =MATCH(H10,INDEX(zT_HurMarDinJord_QnA,0,1),0) -> 26 | I9: =MATCH(I10,INDEX(zT_HurMarDinJord_QnA,0,1),0) -> 36 | J9: =MATCH(J10,INDEX(zT_HurMarDinJord_QnA,0,1),0) -> 46
F10: Fråga 2: | G10: Fråga 4: | H10: Fråga 6: | I10: Fråga 8: | J10: Fråga 10:
F11: =INDEX(zT_HurMarDinJord_QnA,F$9,2) -> Saknar jorden täta skikt? | G11: =INDEX(zT_HurMarDinJord_QnA,G$9,2) -> Är marken full av levande organismer? | H11: =INDEX(zT_HurMarDinJord_QnA,H$9,2) -> Finns det växtrester och bryts de ner? | I11: =INDEX(zT_HurMarDinJord_QnA,I$9,2) -> Utvecklas växtrötterna bra? | J11: =INDEX(zT_HurMarDinJord_QnA,J$9,2) -> Finns vatten tillgängligt för grödan?
F12: =INDEX(zT_HurMarDinJord_QnA,F$9+1,2) -> Tydligt tätt skikt, tydlig plogsula, rötter böjer av | G12: Få eller inga markdjur syns | H12: Inga växtrester eller tar lång tid att bryta ned | I12: Dålig rottillväxt, gulbruna eller svampiga rötter | J12: Torr jord, kräver tät bevattning
F13: =INDEX(zT_HurMarDinJord_QnA,F$9+2,2) -> Något kompakta skikt, rottillväxt lite hämmad | G13: Några | H13: Lite växtrester, långsam nedbrytning | I13: En del finrötter, de flesta friska | J13: Medelgod vattentillgång
F14: =INDEX(zT_HurMarDinJord_QnA,F$9+3,2) -> En spade glider lätt ner förbi bearbetningsdjup | G14: Marken är full av markdjur av olika slag | H14: Växtrester i alla nedbrytningsstadier, jordlukt, sötdoft | I14: Frodiga, friska, vita rotsystem | J14: Rätt mängd vatten tillgänglig vid rätt tillfälle
F16: Table Header Row not used on this sheet
D18: HUR MÅR DIN JORD ?
F21: Skifte | G21: Skifte | H21: Skifte | I21: Skifte | J21: Skifte
F22: 1 | G22: 2 | H22: 3 | I22: 4 | J22: 5
C23: 1 | D23: =F4 -> Har jorden bra struktur och fint bruk?
C24: 2 | D24: =F11 -> Saknar jorden täta skikt?
C25: 3 | D25: =G4 -> Är det lätt att bearbeta jorden?
C26: 4 | D26: =G11 -> Är marken full av levande organismer?
C27: 5 | D27: =H4 -> Finns det rikligt med dagg maskar?
C28: 6 | D28: =H11 -> Finns det växtrester och bryts de ner?
C29: 7 | D29: =I4 -> Är grödor och ogräs friska och frodiga?
C30: 8 | D30: =I11 -> Utvecklas växtrötterna bra?
C31: 9 | D31: =J4 -> Infiltrerar vatten snabbt?
C32: 10 | D32: =J11 -> Finns vatten tillgängligt för grödan?

Sheet Mall-VF (hidden)
M1: Check for MB
Q2: Vårkorn | W2: =zf_uppkomst(Q2,zT_omrade,L2,K2,V2) -> 2000-04-26 | X2: =zf_skord(Q2,zT_omrade,N2,K2) ->  | AF2: =IF(Q3="","-",zf_nedbrukning(zT_omrade,N2,Q2,AA2,L3,Q3,V3,W3)) -> -
U3: =IF(S3="",0,zf_tillforgm_ts(S3)) -> 0 | W3: =zf_uppkomst(Q3,zT_omrade,L3,K3,V3,N2,W2) ->  | Y3: =zf_normskord(Q3,zT_omrade) ->  | AF3: =IF(Q4="","-",zf_nedbrukning(zT_omrade,N3,Q3,AA3,L4,Q4,V4,W4)) -> - | AH3: =zf_ytskydd_slut(Q2,X2,AA2,AF2) ->  | AI3: =zf_ytskydd_start(Q3,W3) ->  | AJ3: =zf_barmark(P2,O3,AH3,AI3,-1) ->  | AK3: =zf_barmark(P2,O3,AH3,AI3,1) ->  | AL3: =AJ3+AK3 ->  | AM3: =zf_orgsubstans(Q3,Z3,Y3,AC3,AE3,AA3,T3,U3) ->  | AN3: =zf_rotter(Q3,Y3,AC3,AE3,AA3) ->  | AO3: =zf_torkdagar("Torkdagar",IF(B2=$B$27,B2:E3,F2:I3)) -> saknas | AP3: =OFFSET(INDIRECT($AP$5),K3-zVBA_Local_VFstartAr,0) -> 0 | AQ3: =OFFSET(INDIRECT($AP$5),K3-zVBA_Local_VFstartAr,1) -> 0 | AS3: =AN3*AS$6/1000 ->  | AT3: =AO3*AT$6/365 ->  | AU3: =AM3*AU$6/1000 ->  | AV3: =AL3*AV$6/365 ->  | AW3: =AP3*AW$6 -> 0 | AX3: =AQ3*AX$6 -> 0 | AY3: =SUM(AS3:AX3) -> 
L5: =Årsmån!E14 -> Vår | M5: =Årsmån!F14 -> Sommar | N5: =Årsmån!G14 -> Höst | O5: =Årsmån!L14 -> Snöfri | P5: =Årsmån!M14 -> Tjäle | Q5: Enabled | AP5: =zf_MBsumsFirstAddress(zT_Local_MBname,"zVBA_DataMinRow","zVBA_MBsumFormulas") -> '[SLU Markstrukturindex - Mall rev 091222.xlsm]Mall-MB'!$B$47
L6: =MATCH(L5,INDEX(zT_arsmansklassning,1,0),0) -> 2 | M6: =MATCH(M5,INDEX(zT_arsmansklassning,1,0),0) -> 3 | N6: =MATCH(N5,INDEX(zT_arsmansklassning,1,0),0) -> 4 | O6: =MATCH(O5,INDEX(zT_arsmansklassning,1,0),0) -> 9 | P6: =MATCH(P5,INDEX(zT_arsmansklassning,1,0),0) -> 10 | AP6: =IF(OR(zT_Local_SkiftesNr="",zT_Local_ScenarioNr=""),zT_MBtemplate,CONCATENATE(zT_MBprefix,zT_Local_SkiftesNr,"-",zT_Local_ScenarioNr)) -> Mall-MB | AS6: 0.67 | AT6: 24.3 | AU6: 0.5 | AV6: -13 | AW6: -0.335 | AX6: -0.222
K9: VÄXTFÖLJD
V11: SKIFTE | AB11: SCENARIO
V12: Nr | W12: Namn | AB12: Nr | AC12: Beskrivning
V13: 1 | W13: =zf_lookup(zT_skiftesdata,V13,"namn",TRUE) -> 0 | AC13: =zf_lookup(zT_skiften_oversikt,(zT_VFprefix&V13&"-"&AB13),"beskrivning",TRUE) -> 
V15: MATJORD | AC15: ALV | AJ15: ARRONDERING | AN15: DRÄNERING
V16: Jordart (kornstorlek, mm) | Z16: Mullhalt (viktprocent) | AC16: Jordart (kornstorlek, mm) | AN16: Typ | AQ16: Avstånd
V18: =zf_lookup(zT_skiftesdata,V13,"mat-jordart",TRUE) -> 0 | Z18: =zf_lookup(zT_skiftesdata,V13,"mullhalt",TRUE) -> 0 | AC18: =zf_lookup(zT_skiftesdata,V13,"alv-jordart",TRUE) -> 0 | AJ18: =zf_lookup(zT_skiftesdata,V13,"arrondering",TRUE) -> 0 | AN18: =zf_lookup(zT_skiftesdata,V13,"typ",TRUE) -> 0 | AQ18: =zf_lookup(zT_skiftesdata,V13,"avstånd",TRUE) -> 0
Q21: INDATA | AJ21: UTDATA | AS21: UTDATA
B24: FÖR SÖKNING I DATABAS (torkdagar) | K24: ÅR | M24: ÅRSMÅNSKLASSNING | O24: Snöfri | P24: Tjäle | Q24: GRÖDA | S24: Tillfört organiskt material | W24: DATUM (ÅÅÅÅ-MM-DD) | Y24: SKÖRDEDATA | AA24: Fånggröda | AB24: FÅNGGRÖDA, VALL, GRÖNGÖDSLING | AH24: MARKYTESKYDD | AK24: BARMARKSDAGAR | AM24: Organisk | AN24: RÖTTER | AO24: TORK- | AP24: PACKNING | AS24: RESULTAT AV ODLINGSSYSTEMINDEXET
F25: Område | G25: =zT_omrade -> 1 | L25: Vår | M25: Sommar | N25: Höst | O25: början | P25: början | S25: Typ | T25: Mängd | U25: ts-halt | V25: Såtid | W25: Uppkomst | X25: Skörd | Y25: Avkast- | Z25: Halm | AB25: Skörd | AC25: Avkast- | AD25: Skörd | AE25: Avkast- | AF25: Nedbrukad | AH25: Slut | AI25: Början | AJ25: Höst | AK25: Vår | AL25: Totalt | AM25: substans | AO25: DAGAR | AP25: Antal | AQ25: ton*km | AS25: Rot | AT25: Upp- | AU25: Organisk | AV25: Andel | AW25: Bearbet- | AX25: Markbe- | AY25: Summa
F26: Jordart | G26: =zf_jordartnr(V18) ->  | Y26: ning | AC26: ning | AE26: ning | AH26: (höst) | AI26: (höst/vår) | AJ26: (h) | AK26: (v) | AL26: (h+v) | AP26: körn. | AQ26: per ha | AS26: mängd | AT26: torkning | AU26: substans | AV26: barmark | AW26: ningar | AX26: lastning
B27: Område | C27: Väder | D27: Jordart | E27: Gröda | T27: (kg/ha) | V27: (datum) | W27: (datum) | X27: (datum) | Y27: (kg/ha) | AB27: (datum) | AC27: (kg/ha) | AD27: (datum) | AE27: (kg/ha) | AM27: (kg/ha) | AN27: (kg/ha)
B28: =$G$25 -> 1 | C28: =LEFT(M28,zT_VaderKeyLength) -> Norm | D28: =$G$26 ->  | E28: =Q28 -> Vårkorn | F28: =$B$27 -> Område | G28: =$C$27 -> Väder | H28: =$D$27 -> Jordart | I28: =$E$27 -> Gröda | J28: =MATCH(K28,INDEX(zT_arsmansklassning,0,1),0) -> 2 | K28: =K29-1 -> -1 | L28: =INDEX(zT_arsmansklassning,$J28,L$6) -> Normal | M28: Normal | N28: Normal | Q28: Vårkorn | W28: =zf_uppkomst(Q28,zT_omrade,L28,K28,V28) ->  | X28: =zf_skord(Q28,zT_omrade,N28,K28) ->  | AF28: =IF(Q29="","-",zf_nedbrukning(zT_omrade,N28,Q28,AA28,L29,Q29,V29,W29)) -> -
B29: =$B$27 -> Område | C29: =$C$27 -> Väder | D29: =$D$27 -> Jordart | E29: =$E$27 -> Gröda | F29: =$G$25 -> 1 | G29: =LEFT(M29,zT_VaderKeyLength) -> Norm | H29: =$G$26 ->  | I29: =Q29 -> 0 | J29: 3 | K29: =startår -> 0 | L29: Normal | M29: Normal | N29: Normal | O29: 2000-03-14 | P29: 1900-12-15
B30: =$G$25 -> 1 | C30: =LEFT(M30,zT_VaderKeyLength) -> Norm | D30: =$G$26 ->  | E30: =Q30 -> 0 | F30: =$B$27 -> Område | G30: =$C$27 -> Väder | H30: =$D$27 -> Jordart | I30: =$E$27 -> Gröda | J30: 4 | K30: =K29+1 -> 1 | L30: Normal | M30: Normal | N30: Normal | O30: 2001-03-14 | P30: 1901-12-15
B31: =$B$27 -> Område | C31: =$C$27 -> Väder | D31: =$D$27 -> Jordart | E31: =$E$27 -> Gröda | F31: =$G$25 -> 1 | G31: =LEFT(M31,zT_VaderKeyLength) -> Norm | H31: =$G$26 ->  | I31: =Q31 -> 0 | J31: 5 | K31: 2 | L31: Normal | M31: Normal | N31: Normal | O31: 2002-03-14 | P31: 1902-12-15
B32: =$G$25 -> 1 | C32: =LEFT(M32,zT_VaderKeyLength) -> Norm | D32: =$G$26 ->  | E32: =Q32 -> 0 | F32: =$B$27 -> Område | G32: =$C$27 -> Väder | H32: =$D$27 -> Jordart | I32: =$E$27 -> Gröda | J32: 6 | K32: 3 | L32: Normal | M32: Normal | N32: Normal | O32: 2003-03-14 | P32: 1903-12-15
B33: =$B$27 -> Område | C33: =$C$27 -> Väder | D33: =$D$27 -> Jordart | E33: =$E$27 -> Gröda | F33: =$G$25 -> 1 | G33: =LEFT(M33,zT_VaderKeyLength) -> Norm | H33: =$G$26 ->  | I33: =Q33 -> 0 | J33: 7 | K33: 4 | L33: Normal | M33: Normal | N33: Normal | O33: 2004-03-14 | P33: 1904-12-15
B34: =$G$25 -> 1 | C34: =LEFT(M34,zT_VaderKeyLength) -> Norm | D34: =$G$26 ->  | E34: =Q34 -> 0 | F34: =$B$27 -> Område | G34: =$C$27 -> Väder | H34: =$D$27 -> Jordart | I34: =$E$27 -> Gröda | J34: 8 | K34: 5 | L34: Normal | M34: Normal | N34: Normal | O34: 2005-03-14 | P34: 1905-12-15
B35: =$B$27 -> Område | C35: =$C$27 -> Väder | D35: =$D$27 -> Jordart | E35: =$E$27 -> Gröda | F35: =$G$25 -> 1 | G35: =LEFT(M35,zT_VaderKeyLength) -> Norm | H35: =$G$26 ->  | I35: =Q35 -> 0 | J35: 9 | K35: 6 | L35: Normal | M35: Normal | N35: Normal | O35: 2006-03-14 | P35: 1906-12-15
B36: =$G$25 -> 1 | C36: =LEFT(M36,zT_VaderKeyLength) -> Norm | D36: =$G$26 ->  | E36: =Q36 -> 0 | F36: =$B$27 -> Område | G36: =$C$27 -> Väder | H36: =$D$27 -> Jordart | I36: =$E$27 -> Gröda | J36: 10 | K36: 7 | L36: Normal | M36: Normal | N36: Normal | O36: 2007-03-14 | P36: 1907-12-15
B37: =$B$27 -> Område | C37: =$C$27 -> Väder | D37: =$D$27 -> Jordart | E37: =$E$27 -> Gröda | F37: =$G$25 -> 1 | G37: =LEFT(M37,zT_VaderKeyLength) -> Norm | H37: =$G$26 ->  | I37: =Q37 -> 0 | J37: 11 | K37: 8 | L37: Normal | M37: Normal | N37: Normal | O37: 2008-03-14 | P37: 1908-12-15
B38: =$G$25 -> 1 | C38: =LEFT(M38,zT_VaderKeyLength) -> Norm | D38: =$G$26 ->  | E38: =Q38 -> 0 | F38: =$B$27 -> Område | G38: =$C$27 -> Väder | H38: =$D$27 -> Jordart | I38: =$E$27 -> Gröda | J38: 12 | K38: 9 | L38: Normal | M38: Normal | N38: Normal | O38: 2009-03-14 | P38: 1909-12-15
AS40: =AVERAGE(IF($Q$29:$Q$39<>"",AS29:AS39)) ->  | AT40: =AVERAGE(IF($Q$29:$Q$39<>"",AT29:AT39)) ->  | AU40: =AVERAGE(IF($Q$29:$Q$39<>"",AU29:AU39)) ->  | AV40: =AVERAGE(IF($Q$29:$Q$39<>"",AV29:AV39)) ->  | AW40: =AVERAGE(IF($Q$29:$Q$39<>"",AW29:AW39)) ->  | AX40: =AVERAGE(IF($Q$29:$Q$39<>"",AX29:AX39)) ->  | AY40: =AVERAGE(IF($Q$29:$Q$39<>"",AY29:AY39)) -> 

Sheet Mall-MB (hidden)
J1: 17 | K1: 19 | L1: 22 | M1: 23 | N1: 24 | O1: 26 | P1: 32 | Q1: 27 | W1: Kort Lista AKTIV | X1: TRUE | AI1: =COLUMN()-COLUMN(zT_MontageAlternativ)+1 -> 1 | AJ1: =COLUMN()-COLUMN(zT_MontageAlternativ)+1 -> 2 | AK1: =COLUMN()-COLUMN(zT_MontageAlternativ)+1 -> 3 | AL1: =COLUMN()-COLUMN(zT_MontageAlternativ)+1 -> 4 | AM1: =COLUMN()-COLUMN(zT_MontageAlternativ)+1 -> 5
A2: =IF(OR(zT_Local_SkiftesNr="",zT_Local_ScenarioNr=""),zT_VFtemplate,CONCATENATE(zT_VFprefix,zT_Local_SkiftesNr,"-",zT_Local_ScenarioNr)) -> Mall-VF | B2: Range: År | C2: $I$47:$I$71 | F2: Check for VF | W2: Fas=Skörd => Sådd AKTIV | X2: FALSE | AB2: Row | AC2: Namn | AD2: Totvikt | AE2: Viktandel | AF2: Ringtryck | AG2: Hjul | AH2: Antal | AI2: Namn | AJ2: Totvikt | AK2: Viktandel | AL2: Ringtryck | AM2: Hjul
B3: Range: Antal | C3: $X$47:$X$71 | J3: Active DB Row | K3: =ROW(#REF!) ->  | W3: Fas=Sådd AKTIV | X3: TRUE | AB3: =Traktorer!D10 -> 3 | AC3: =Traktorer!F10 -> 5 | AD3: =Traktorer!G10 -> 6 | AE3: =Traktorer!H10 -> 7 | AF3: =Traktorer!I10 -> 8 | AG3: =Traktorer!J10 -> 9 | AH3: =Traktorer!E10 -> 4 | AI3: =IF($AB$5,$AB$6,INDEX(zT_TraktorTabell,$AB$4,AC3)) -> 
B4: Range: Packning | C4: $Z$47:$Z$71 | W4: Fas=Sådd => Skörd AKTIV | X4: FALSE | AB4: =MATCH(zVBA_Traktor,INDEX(zT_TraktorTabell,0,AB3),0) ->  | AC4: =Traktorer!K10 -> 10 | AD4: =Traktorer!L10 -> 11 | AE4: =Traktorer!M10 -> 12 | AF4: =Traktorer!N10 -> 13 | AG4: =Traktorer!O10 -> 14 | AH4: =IF($AB$5,1,INDEX(zT_TraktorTabell,$AB$4,AH3)) -> 1
J5: Change Macro | K5: Enabled | W5: Fas=Skörd AKTIV | X5: FALSE | AB5: =ISERROR(AB4) -> TRUE | AC5: =Traktorer!P10 -> 15 | AD5: =Traktorer!Q10 -> 16 | AE5: =Traktorer!R10 -> 17 | AF5: =Traktorer!S10 -> 18 | AG5: =Traktorer!T10 -> 19 | AH5: =MATCH(zVBA_MontageAlternativ,INDEX(zT_MontageAlternativ,0,AI1),0) -> 
A6: =A5+1 -> 1 | B6: =SUM(IF(INDIRECT(zVBA_MBsumYears)=A6,INDIRECT(zVBA_MBsumAntal))) -> 0 | C6: =SUM(IF(INDIRECT(zVBA_MBsumYears)=A6,INDIRECT(ZVBA_MBsumPackning))) -> 0 | J6: for this sheet | AB6: ="" ->  | AC6: =Traktorer!U10 -> 20 | AD6: =Traktorer!V10 -> 21 | AE6: =Traktorer!W10 -> 22 | AF6: =Traktorer!X10 -> 23 | AG6: =Traktorer!Y10 -> 24 | AH6: =ISERROR(AH5) -> TRUE
A8: =MATCH(zVBA_Redskap,INDEX(zT_MaskinTabell,0,B8),0) ->  | B8: =Maskinpark!D20 -> 3 | C8: =Maskinpark!E20 -> 4 | D8: =Maskinpark!F20 -> 5 | E8: =Maskinpark!G20 -> 6 | F8: =Maskinpark!H20 -> 7 | G8: =Maskinpark!I20 -> 8 | W8: =Maskinpark!L20 -> 11 | AH8: =Maskinpark!J20 -> 9 | AI8: =Maskinpark!K20 -> 10 | AJ8: =MATCH(N30,INDEX(zT_BearbetningsMatris1,0,1),0) -> 49 | AM8: =Maskinpark!M20 -> 12 | AN8: =Maskinpark!N20 -> 13 | AO8: =Maskinpark!O20 -> 14 | AP8: =Maskinpark!P20 -> 15 | AQ8: =Maskinpark!Q20 -> 16 | AR8: =Maskinpark!R20 -> 17 | AS8: =Maskinpark!S20 -> 18 | AT8: =Maskinpark!T20 -> 19 | AU8: =Maskinpark!U20 -> 20 | AV8: =Maskinpark!V20 -> 21 | AW8: =Maskinpark!W20 -> 22 | AX8: =Maskinpark!X20 -> 23
A9: Värden från tabell | C9: =INDEX(zT_MaskinTabell,$A$8,C8) ->  | D9: =INDEX(zT_MaskinTabell,$A$8,D8) ->  | E9: =INDEX(zT_MaskinTabell,$A$8,E8) ->  | F9: =INDEX(zT_MaskinTabell,$A$8,F8) ->  | G9: =INDEX(zT_MaskinTabell,$A$8,G8) ->  | U9: =IF($AH$6,"",INDEX(zT_MontageAlternativ,$AH$5,AL1)) ->  | V9: =IF($AH$6,"",INDEX(zT_MontageAlternativ,$AH$5,AM1)) ->  | W9: =IF(AG27=zT_SjalvgaendeKey,0,INDEX(zT_MaskinTabell,$A$8,W8)) ->  | X9: 1 | AH9: =INDEX(zT_MaskinTabell,$A$8,AH8) ->  | AI9: =INDEX(zT_MaskinTabell,$A$8,AI8) ->  | AJ9: =INDEX(zT_BearbetningsMatris1,AJ8,zT_ColTypAvKorning) -> Risk för tomkörningar | AM9: =IF($AH$29<AM15,0,INDEX(zT_MaskinTabell,$A$8,AM8)) -> 
A10: Trigg=Bearbetning | X10: =N32 -> 1 | AJ10: =N31 -> Risk för tomkörningar
A11: Trigg=Traktor | U11: =W33 -> 1 | V11: =W35 -> 2
A12: Trigg=Redskap | W12: =Z34 -> 0.2 | AH12: =AC29 -> 1 | AI12: =AC30 -> 0 | AM12: =AE33 -> 1.8 | AN12: =AF33 -> 1.8 | AO12: =AG33 -> 0 | AP12: =AH33 -> 0 | AQ12: =AE34 -> 0.5 | AR12: =AF34 -> 0.5 | AS12: =AG34 -> 0 | AT12: =AH34 -> 0 | AU12: =AE35 -> 4 | AV12: =AF35 -> 4 | AW12: =AG35 -> 0 | AX12: =AH35 -> 0
C14: Anslutning | D14: Antal | E14: Arbets- | F14: Vikt | G14: Max | I14: År | J14: Bearbetning | L14: Traktor / dragmaskin | P14: Traktor | U14: Traktor | V14: Traktor | W14: Öveförd | X14: Antal | Z14: Pack- | AB14: Redskap | AH14: Start- | AI14: Slut- | AJ14: Typ av körning | AL14: Uppm ks | AM14: Redskap: Lufttryck per axel | AQ14: Redskap: Viktandel per axel | AU14: Redkap: Hjul per axel
C15: till traktor | D15: axlar | E15: bredd | F15: ex last | G15: last | P15: Montage | U15: lufttryck | V15: hjul/axel | W15: last | X15: körningar | Z15: ning | AH15: last | AI15: last | AL15: km/ha | AM15: 1 | AN15: 2 | AO15: 3 | AP15: 4 | AQ15: 1 | AR15: 2 | AS15: 3 | AT15: 4 | AU15: 1 | AV15: 2 | AW15: 3 | AX15: 4
A16: Data från lista | I16: =OFFSET(I16,$K$3-ROW(),0) ->  | J16: =OFFSET(J16,$K$3-ROW(),0) ->  | L16: =OFFSET(L16,$K$3-ROW(),0) ->  | P16: =OFFSET(P16,$K$3-ROW(),0) ->  | U16: =OFFSET(U16,$K$3-ROW(),0) ->  | V16: =OFFSET(V16,$K$3-ROW(),0) ->  | W16: =OFFSET(W16,$K$3-ROW(),0) ->  | X16: =OFFSET(X16,$K$3-ROW(),0) ->  | Z16: 3.455555556 | AB16: =OFFSET(AB16,$K$3-ROW(),0) ->  | AH16: =OFFSET(AH16,$K$3-ROW(),0) ->  | AI16: =OFFSET(AI16,$K$3-ROW(),0) ->  | AJ16: =OFFSET(AJ16,$K$3-ROW(),0) ->  | AL16: =OFFSET(AL16,$K$3-ROW(),0) ->  | AM16: =OFFSET(AM16,$K$3-ROW(),0) -> 
A17: Adresser (destination) | I17: =J30 -> 2004 | J17: =N30 -> Flytgödseltunna (spridning) | L17: =U25 -> CiH"lejd" 150 hk (dm). Antagande CiH 7120 Magnum | P17: =W27 -> Dubbel | U17: =W33 -> 1 | V17: =W35 -> 2 | W17: =Z34 -> 0.2 | X17: =N32 -> 1 | Z17: =Y42 ->  | AB17: =AB25 -> Urintunna Olby, boogie (TrelleborgTwin 800mm däck) | AH17: =AC29 -> 1 | AI17: =AC30 -> 0 | AJ17: =N31 -> Risk för tomkörningar | AL17: =N36 -> 0 | AM17: =AE33 -> 1.8 | AN17: =AF33 -> 1.8 | AO17: =AG33 -> 0 | AP17: =AH33 -> 0 | AQ17: =AE34 -> 0.5 | AR17: =AF34 -> 0.5 | AS17: =AG34 -> 0 | AT17: =AH34 -> 0 | AU17: =AE35 -> 4 | AV17: =AF35 -> 4 | AW17: =AG35 -> 0 | AX17: =AH35 -> 0
A18: Data till lista | I18: =J30 -> 2004 | J18: =N30 -> Flytgödseltunna (spridning) | L18: =IF(AG27=zT_SjalvgaendeKey,"",U25) ->  | P18: =IF(AG27=zT_SjalvgaendeKey,"",W27) ->  | U18: =IF(AG27=zT_SjalvgaendeKey,"",W33) ->  | V18: =IF(AG27=zT_SjalvgaendeKey,"",W35) ->  | W18: =IF(AG27=zT_SjalvgaendeKey,"",Z34) ->  | X18: =N32 -> 1 | Z18: =Y42 ->  | AB18: =AB25 -> Urintunna Olby, boogie (TrelleborgTwin 800mm däck) | AH18: =AC29 -> 1 | AI18: =AC30 -> 0 | AJ18: =N31 -> Risk för tomkörningar | AL18: =IF(N36=0,"",N36) ->  | AM18: =AE33 -> 1.8 | AN18: =AF33 -> 1.8 | AO18: =AG33 -> 0 | AP18: =AH33 -> 0 | AQ18: =AE34 -> 0.5 | AR18: =AF34 -> 0.5 | AS18: =AG34 -> 0 | AT18: =AH34 -> 0 | AU18: =AE35 -> 4 | AV18: =AF35 -> 4 | AW18: =AG35 -> 0 | AX18: =AH35 -> 0
I20: Table Header Row not used on this sheet
N21: KRITISK BELASTNING MARKPACKNING ALVEN
J23: SKIFTE | N23: SCENARIO | T23: TRAKTOR / DRAGMASKIN | AA23: REDSKAP / SJÄLVGÅENDE MASKIN | AZ23: 3 ton / hjul istället för 6 ton / axel som kritisk nivå
J25: Nr | N25: Nr | U25: CiH"lejd" 150 hk (dm). Antagande CiH 7120 Magnum | AB25: Urintunna Olby, boogie (TrelleborgTwin 800mm däck)
J26: Namn | K26: =zf_lookup(zT_skiftesdata,K25,"namn",TRUE) ->  | N26: Beskrivning | O26: =zf_lookup(zT_skiften_oversikt,(zT_VFprefix&K25&"-"&O25),"beskrivning",TRUE) -> 
J27: Arrondering | K27: =IF(zT_Local_SkiftesNr="",INDEX(zT_Arrondering,1,1),zf_lookup(zT_skiftesdata,zT_Local_SkiftesNr,"arrondering",TRUE)) -> Regelbunden | U27: =AH4 -> 1 | V27: Montage | W27: Dubbel | AB27: Tomvikt | AC27: =F9 ->  | AD27: kg | AF27: Anslutning | AG27: =C9 -> 
B28: VF: År 1 | C28: VF: Sista År | I28: ÅR I VÄXTFÖLJD | L28: BEARBETNING OCH KÖRSTRÄCKA | AB28: Maxlast | AC28: =G9 ->  | AD28: kg | AE28: Totalvikt | AG28: Arbetsbredd | AH28: =E9 ->  | AI28: m
A29: Rad | B29: =ROW(zf_Range("zVBA_Local_VFstartAr",zT_Local_VFname)) -> 29 | C29: =ROW(zf_Range("zVBA_DataMaxRow",zT_Local_VFname)) -> 39 | V29: framaxel | W29: bakaxel | X29: Totalt | AB29: Startlast | AC29: 1 | AD29: % | AE29: =AC27+AC28*MIN(AC29,AC30) ->  | AF29: kg min | AG29: Axlar | AH29: =D9 -> 
A30: Värde | B30: =zf_Indirect("zVBA_Local_VFstartAr",zT_Local_VFname) -> 0 | C30: =zVBA_Local_MBstartAr+C29-B29-1 -> 9 | J30: 2004 | M30: Bearbetning | N30: Flytgödseltunna (spridning) | U30: Vikt kg | V30: =IF(X30=0,0,(X30-W30)) ->  | W30: =IF(X30=0,0,(X30-(100%-W34)*X30)) ->  | X30: =IF(OR($AH$6,zVBA_Traktor="",AG27=zT_SjalvgaendeKey),0,INDEX(zT_MontageAlternativ,$AH$5,AJ1)) ->  | AB30: Slutlast | AC30: 0 | AD30: % | AE30: =AC27+AC28*MAX(AC29,AC30) ->  | AF30: kg max
I31: BEARBETNINGSLISTA | M31: Typ av körning | N31: Risk för tomkörningar
M32: Antal körningar | N32: 1 | Z32: ÖVERFÖRD LAST | AE32: Axel 1 | AF32: Axel 2 | AG32: Axel 3 | AH32: Axel 4
V33: Ringtryck kP | W33: 1 | Z33: Axelbelastning % | AD33: Ringtryck kP | AE33: 1.8 | AF33: 1.8 | AG33: 0 | AH33: 0 | AI33: kP
N34: Uppmätt | O34: Schablon | V34: Viktandel bakaxel | W34: =IF(OR($AH$6,X30=0),0,INDEX(zT_MontageAlternativ,$AH$5,AK1)) ->  | X34: % | Z34: 0.2 | AD34: Viktandel per axel | AE34: 0.5 | AF34: 0.5 | AG34: 0 | AH34: 0 | AI34: %
M35: Körsträckefaktor | N35: =IF(N36="","",N36*1000*AH28/10000) ->  | O35: =zf_lookup(zT_KorStrackeFaktor,N31,K27,TRUE) -> 2 | V35: Hjul per axel | W35: 2 | AD35: Hjul per axel | AE35: 4 | AF35: 4 | AG35: 0 | AH35: 0
M36: Körsträcka | O36: =10000/AH28/1000*O35 ->  | P36: km/ha | AD36: Merbelastn. flera överfarter | AE36: 0 | AF36: 0.05 | AG36: 0.1 | AH36: 0.15
I37: NYCKELDATA FRÅN VÄXTFÖLJD | V37: Lägsta belastning | W37: =IF(X30=0,0,(AE29*Z34+IF(N30="Plöjning",1.5*W30,IF(N30="Harvning",1.25*W30,IF(OR(N30="Djupkult",N30="Sådd kombi"),1.35*W30,W30))))*2/W35/IF(N30="Plöjning",2,1)) ->  | X37: kg | AD37: Lägsta belastning | AE37: =$AE$29/$AE$30*AE38 ->  | AF37: =$AE$29/$AE$30*AF38 ->  | AG37: =$AE$29/$AE$30*AG38 ->  | AH37: =$AE$29/$AE$30*AH38 ->  | AI37: kg
V38: Högsta belastning | W38: =IF(X30=0,0,(AE30*Z34+IF(N30="Plöjning",1.5*W30,IF(N30="Harvning",1.25*W30,IF(OR(N30="Djupkult",N30="Sådd kombi"),1.35*W30,W30))))*2/W35/IF(N30="Plöjning",2,1)) ->  | X38: kg | AD38: Högsta belastning | AE38: =IF(AE33=0,0,$AE$30*AE34*IF($AG$27=zT_SjalvgaendeKey,1,1-$Z$34)*2/AE35*(1+AE36)) ->  | AF38: =IF(AF33=0,0,$AE$30*AF34*IF($AG$27=zT_SjalvgaendeKey,1,1-$Z$34)*2/AF35*(1+AF36)) ->  | AG38: =IF(AG33=0,0,$AE$30*AG34*IF($AG$27=zT_SjalvgaendeKey,1,1-$Z$34)*2/AG35*(1+AG36)) -> 0 | AH38: =IF(AH33=0,0,$AE$30*AH34*IF($AG$27=zT_SjalvgaendeKey,1,1-$Z$34)*2/AH35*(1+AH36)) -> 0 | AI38: kg
I39: ÅR | J39: GRÖDA | K39: Tillf org mat | L39: Såtid | M39: Uppkomst | N39: Skörd | O39: Halm | P39: Nedbrukad | V39: Kritisk nivå | W39: =IF(X30=0,0,IF(N30="Plöjning",1500,IF(((-3000*W33)+10500)<6000,6000,(-3000*W33)+10500))) ->  | X39: kg | AD39: Kritisk nivå | AE39: =IF(AE33=0,0,IF(((-3000*AE33)+10500)<6000,6000,(-3000*AE33)+10500)) -> 6000 | AF39: =IF(AF33=0,0,IF(((-3000*AF33)+10500)<6000,6000,(-3000*AF33)+10500)) -> 6000 | AG39: 0 | AH39: 0 | AI39: kg
G40: =G41-1 -> 2032 | I40: =J30-1 -> 2003 | J40: =IF(INDIRECT(ADDRESS($G40,J$1,4,TRUE,zT_Local_VFname))="","",INDIRECT(ADDRESS($G40,J$1,4,TRUE,zT_Local_VFname))) ->  | V40: Kritisk belastning | W40: =(MAX(W37-W39,0)+MAX(W38-W39,0))/2 ->  | X40: kg | AD40: Kritisk belastning | AE40: =(MAX(AE37-AE39,0)+MAX(AE38-AE39,0))/2 ->  | AF40: =(MAX(AF37-AF39,0)+MAX(AF38-AF39,0))/2 ->  | AI40: kg
G41: =B29+(J30-B30) -> 2033 | I41: =J30 -> 2004 | V41: Belastningsfaktor | W41: =IF(W37>=W39,IF(W33=0,0,1),IF(W38<=W39,0,(W38-W39)/(W38-W37))) ->  | Z41: SUMMA tonkm/ha | AD41: Belastningsfaktor | AE41: =IF(AE37>=AE39,IF(AE33=0,0,1),IF(AE38<=AE39,0,(AE38-AE39)/(AE38-AE37))) ->  | AF41: =IF(AF37>=AF39,IF(AF33=0,0,1),IF(AF38<=AF39,0,(AF38-AF39)/(AF38-AF37))) -> 
G42: =G41+1 -> 2034 | I42: =J30+1 -> 2005 | V42: Markpackning | W42: =W40*W41*IF($N$36=0,$O$36,$N$36)/1000*$N$32 ->  | X42: tonkm/ha | Y42: =SUM(AE42:AH42)+IF(ISNA(W42),0,W42) ->  | AD42: Markpackning | AE42: =AE40*AE41*IF($N$36=0,$O$36,$N$36)/1000*$N$32 ->  | AF42: =AF40*AF41*IF($N$36=0,$O$36,$N$36)/1000*$N$32 ->  | AG42: =AG40*AG41*IF($N$36=0,$O$36,$N$36)/1000*$N$32 ->  | AH42: =AH40*AH41*IF($N$36=0,$O$36,$N$36)/1000*$N$32 ->  | AI42: tonkm/ha
I45: År | J45: Bearbetning | L45: Traktor / dragmaskin | U45: Traktor/dragmaskin | W45: Öveförd | X45: Antal | Z45: Pack- | AB45: Redskap | AH45: Start- | AI45: Slut- | AJ45: Typ av körning | AL45: Uppm ks | AM45: Redskap: Lufttryck per axel | AQ45: Redskap: Viktandel per axel | AU45: Redkap: Hjul per axel
P46: Montage | U46: Lufttryck | V46: Hjul/axel | W46: last | X46: körningar | Z46: ning | AH46: last | AI46: last | AL46: km/ha | AM46: Axel 1 | AN46: Axel 2 | AO46: Axel 3 | AP46: Axel 4 | AQ46: Axel 1 | AR46: Axel 2 | AS46: Axel 3 | AT46: Axel 4 | AU46: Axel 1 | AV46: Axel 2 | AW46: Axel 3 | AX46: Axel 4

Sheet Tabeller
B3: SLU Markstrukturindex - Parametrar och tabeller
B7: Jordförhållanden
E9: Jordart | I9: Jordartnr | J9: Jordart (kornstorlek, mm) | M9: Lerhalt (%) | O9: Utrullningsprov (trådtjocklek) | S9: Färg i torrt tillstånd hos alvjorden | Y9: Dräneringsbehov | AA9: Dräneringsbehov
M10: resp org halt
E11: Mycket styv lera | I11: 1 | J11: Mycket styv lera | M11: >60 | O11: < 1 mm | S11: Mörkgrå eller mörkt gråbrun | Y11: 14 | AA11: 10-14
E12: Styv lera och styv moränlera, ej rotspärr | I12: 2 | J12: Styv lera | M12: 40-60 | O12: 1 mm | S12: Grå, gråbrun eller rödbrun | Y12: 16 | AA12: 12-16
E13: Styv lera och styv moränlera, rotspärr | I13: 3 | Y13: 14 | AA13: 10-14
E14: Mellanlera, ej rotspärr | I14: 4 | J14: Mellanlera | M14: 25-40 | O14: 1-1,5 mm | S14: Tämligen ljust grå eller ljust rödbrun | Y14: 18 | AA14: 14-18
E15: Moränmellanlera, ej rotspärr | I15: 5 | Y15: 18 | AA15: 14-18
E16: Mellanlera och moränmellanlera, rotspärr | I16: 6 | Y16: 16 | AA16: 12-16
E17: Lättlera | I17: 7 | J17: Lättlera | M17: 15-25 | O17: ca 2 mm | S17: Ljusgrå | Y17: 20 | AA17: 16-20
E18: Moränlättlera | I18: 8 | Y18: 20 | AA18: 16-20
E19: Lerig finmo + lerig moränjord | I19: 9 | Y19: 25 | AA19: 15-25
E20: Lerfria och svagt leriga jordar + lerig sand och lerig grovmo | I20: 10 | Y20: Behovs | AA20: Behovsd. El. 20-40
E21: Kärrtorvjord, väl förmultnad | I21: 11 | J21: Kärrtorvjord | M21: >30% org mtrl | O21: Näringsrik | S21: Gul->svart, beror av förmultningsgrad | Y21: 25 | AA21: 10-25
E22: Mosstorvjord, svagt förmultnad | I22: 12 | J22: Mosstorvjord | M22: >30% org mtrl | O22: Näringsfattig | S22: Gul->svart, beror av förmultningsgrad | Y22: 40 | AA22: 25-40
E23: Gyttjejord | I23: 13 | J23: Gyttja | M23: >30 % gyttja | O23: Tät, klibbar ej, mindre elastisk | S23: Brun, brungrön, mörknar i luft, men ljusnar åter vid torkning | Y23: Behovs | AA23: Behovsd.
J24: Torvjord, väl förmultnad | Y24: 25
J25: Torvjord, svagt förmultnad | Y25: 40
J26: Mjäla (0,002-0,02) | M26: 2-5 | O26: 4-6 mm | S26: Gråvit | Y26: 20
J27: Grus (2-20) | M27: <2 | O27: Kan ej rullas | S27: Som rödaktig sand | Y27: Behovsdikning
J28: Sand (0,2-2) | M28: <2 | O28: Kan ej rullas | S28: Som rödaktig sand | Y28: Behovsdikning
J29: Moränsand | M29: 2-5 | O29: Kan ej rullas | S29: Som rödaktig sand | Y29: Behovsdikning
J30: Grovmo (0,06-0,2) | M30: <2 | O30: Kan ej rullas | S30: Ljusgrå eller med svag sandfärg | Y30: Behovsdikning
J31: Finmo (0,02-0,06) | M31: <2 | O31: 4-6 mm | S31: Ljusgrå | Y31: Behovsdikning
J32: Moränmo | M32: 2-5 | O32: 4-6 mm | S32: Ljusgrå | Y32: Behovsdikning
J33: Gyttjelera | M33: 1-6 % gyttja | O33: Kort brott, grynig, tärningar, klibbar | S33: Grå, svagt grönaktig, | Y33: Behovsdikning
J34: Lergyttja | M34: 6-30 % gyttja | O34: Kort brott, klibb-ar, något elastisk | S34: Grönaktigt gulgrå/blågrå, vitnar vid torkning | Y34: 20
J35: Leriga jordar | M35: 5-15 | O35: ca 3 mm | S35: Ljusgrå | Y35: 25
E36: zHeader | I36: =I9 -> Jordartnr | J36: z_1A | M36: z_1B | O36: z_1C | S36: z_1D | Y36: z_1E | AA36: z_1F
D38: Tabell | E38: Jordarter, dräneringsbehov = f(jordart), mm | M38: Gamla namn: | N38: jordarter2, jordartstab
E40: Mullhalt | F40: Kommentar | J40: Indextal
E42: Mycket mullrik (>12%) | F42: Ofta naturlig hög mullhalt | J42: 5
E43: Mullrik (6-12%) | F43: Förustättningar för mycket god markstruktur | J43: 4
E44: Måttligt mullhaltig (3-6%) | F44: Förustättningar för god markstruktur | J44: 3
E45: Något mullhaltig (2-3%) | F45: Kan ge odlingsproblem | J45: 2
E46: mullfattig (<2%) | F46: Dåliga odlingsegenskaper | J46: 1
E47: zHeader | F47: z_4A | J47: z_4B
D49: Tabell | E49: Mullhalt (mullhalt, kommentar, indextal) | M49: Gamla namn: | N49: mullhalt, mullhaltstab
E51: Antal tramp | F51: Markstruktur | H51: Indextal
E53: 0 | F53: Mycket lucker | H53: 7
E54: 1 | F54: lucker | H54: 6
E55: 2 | F55: något lucker | H55: 5
E56: 3 | F56: något tät | H56: 4
E57: 4-5 | F57: tät | H57: 3
E58: 6-7 | F58: mycket tät | H58: 2
E59: >7 | F59: extremt tät | H59: 1
E60: zHeader | F60: z_5A | H60: z_5B
D62: Tabell | E62: Markstruktur (antal tramp, markstruktur, indextal) | M62: Gamla namn: | N62: tramp, tramptabell
E64: Dräneringsstatus
E66: Systemtäckdikat
E67: Behovstäckdikat
E68: Ej rördikat
D70: Lista | E70: Dräneringsstatus | M70: Gamla namn: | N70: dränstat
E72: Dikesavstånd | F72: Medel
E74: <10 | F74: 10
E75: 10-14 | F75: 12
E76: 12-16 | F76: 14
E77: 14-18 | F77: 16
E78: 16-20 | F78: 18
E79: 15-25 | F79: 20
E80: >25 | F80: 25
E81: zHeader | F81: z_3A
D83: Tabell | E83: Dikesavstånd | M83: Gamla namn: | N83: dikavst, dikesavt2
D85: Dränerings | E85: Meddelande | F85: Meddelande avser den text som visas i kolumnen 'Resultat' under rubriken DRÄNERING på blad Grundförbättringsindex
D86: behov
D87: Ja | E87: Dräneringsbehov föreligger
D88: Nej | E88: Inget dräneringsbehov
D90: Tabell | E90: Dräneringsbehov (definition av text som visas på blad Grundförbättringsindex) | M90: Gamla namn: | N90: inget (hårdkodat)
E92: Dräneringsbehov i fält | H92: Kommentar | K92: Indextal
E94: Markytan fast, inga fotavtryck | H94: Mycket väldränerat | K94: 6
E95: Markytan mindre fast, fotavtryck< 2cm djupa | H95: Väldränerat | K95: 5
E96: Markytan något mjuk, fotavtryck 2-5 cm djupa | H96: Tillfredställande dränerat | K96: 4
E97: Markytan rejält mjuk, fotavtryck > 5 cm djupa | H97: Ett visst dränerigsbehov | K97: 3
E98: markytan mycket mjuk och blöt, fotavtryck >7-10 cm | H98: Stort dräneringsbehov | K98: 2
E99: Vatten stående på ytan | H99: Mycket stort dräneringsbehov | K99: 1
E100: zHeader | H100: z_2A | K100: z_2B
D102: Tabell | E102: Dräneringsbehov i fält (dräneringsbehov i fält, kommentarer, indextal) | M102: Gamla namn: | N102: fältdrän, fältdräntabell
D104: Fråga 1: | E104: Har jorden bra struktur och fint bruk?
D105: Svar A | E105: Kokigt, pulvrigt, massivt eller skiktat | H105: Sämst
D106: Svar B | E106: En del smuliga (granulära) aggregat syns | H106: Medel
D107: Svar C | E107: Porösa granulära aggregat | H107: Bäst
D109: Fråga 2: | E109: Saknar jorden täta skikt?
D110: Svar A | E110: Tydligt tätt skikt, tydlig plogsula, rötter böjer av | H110: Sämst
D111: Svar B | E111: Något kompakta skikt, rottillväxt lite hämmad | H111: Medel
D112: Svar C | E112: En spade glider lätt ner förbi bearbetningsdjup | H112: Bäst
D114: Fråga 3: | E114: Är det lätt att bearbeta jorden?
D115: Svar A | E115: Många överfarter och stort dragkraftbehov | H115: Sämst
D116: Svar B | E116: Medel | H116: Medel
D117: Svar C | E117: Lättbearbetad jord, litet dragkraftbehov | H117: Bäst
D119: Fråga 4: | E119: Är marken full av levande organismer?
D120: Svar A | E120: Få eller inga markdjur syns | H120: Sämst
D121: Svar B | E121: Några | H121: Medel
D122: Svar C | E122: Marken är full av markdjur av olika slag | H122: Bäst
D124: Fråga 5: | E124: Finns det rikligt med dagg maskar?
D125: Svar A | E125: Inga daggmaskar | H125: Sämst
D126: Svar B | E126: Några daggmaskar och maskgångar | H126: Medel
D127: Svar C | E127: Många daggmaskar, maskgångar | H127: Bäst
D129: Fråga 6: | E129: Finns det växtrester och bryts de ner?
D130: Svar A | E130: Inga växtrester eller tar lång tid att bryta ned | H130: Sämst
D131: Svar B | E131: Lite växtrester, långsam nedbrytning | H131: Medel
D132: Svar C | E132: Växtrester i alla nedbrytningsstadier, jordlukt, sötdoft | H132: Bäst
D134: Fråga 7: | E134: Är grödor och ogräs friska och frodiga?
D135: Svar A | E135: Hämmad tillväxt, missfärgning, ojämna bestånd | H135: Sämst
D136: Svar B | E136: Något ojämn tillväxt, lite missfärgning | H136: Medel
D137: Svar C | E137: Frisk, frodig och jämn gröda | H137: Bäst
D139: Fråga 8: | E139: Utvecklas växtrötterna bra?
D140: Svar A | E140: Dålig rottillväxt, gulbruna eller svampiga rötter | H140: Sämst
D141: Svar B | E141: En del finrötter, de flesta friska | H141: Medel
D142: Svar C | E142: Frodiga, friska, vita rotsystem | H142: Bäst
D144: Fråga 9: | E144: Infiltrerar vatten snabbt?
D145: Svar A | E145: Stående vatten kvar länge efter lätt regn | H145: Sämst
D146: Svar B | E146: Vattnet rinner undan sakta, lite pölar | H146: Medel
D147: Svar C | E147: Inga pölar efter stora regn eller bevattning | H147: Bäst
D149: Fråga 10: | E149: Finns vatten tillgängligt för grödan?
D150: Svar A | E150: Torr jord, kräver tät bevattning | H150: Sämst
D151: Svar B | E151: Medelgod vattentillgång | H151: Medel
D152: Svar C | E152: Rätt mängd vatten tillgänglig vid rätt tillfälle | H152: Bäst
D154: Tabell | E154: Hur mår din jord? (frågor och svar) | M154: Gamla namn: | N154: inget (hårdkodat)
B155: Årsmån
E157: Årsmån* | G157: Nyckel**
E158: Normal | G158: =LEFT(E158,zT_VaderKeyLength) -> Norm
E159: Kall/våt | G159: =LEFT(E159,zT_VaderKeyLength) -> Kall
E160: Varm/torr | G160: =LEFT(E160,zT_VaderKeyLength) -> Varm
E161: * Anges för vår, sommar, och höst | G161: ** Används av "custom functions" (UDFs) och macron
D162: Tabell | E162: Årsmån: Årsmånsklasser | M162: Gamla namn: | N162: årsmån
D163: Underlag för beräkning av antal dagar med bar mark (SMHI data 1931-60). Definition av perioders början och slut se WJ (73/74)
D164: SCB | E164: Produktionsområden | F164: Data | G164: Snöfri periods början på våren** | J164: Tjälfri periods slut på hösten*** | N164: Tjälfri periods slut på hösten**
D165: (Sortval) | F165: för län | G165: Medel* | H165: Tidigast* | I165: Senast* | J165: Medel* | K165: Tidigast* | L165: Senast* | N165: Medel* | O165: Tidigast* | P165: Senast*
H166: (torr/varm) | I166: (kall/våt) | K166: (kall/våt) | L166: (torr/varm) | O166: (torr/varm) | P166: (kall/våt)
D167: 1 | E167: Götalands södra slättbygder | F167: M | G167: 2001-03-14 | H167: 2001-01-26 | I167: 2001-04-16 | J167: -16 | K167: -39 | L167: 16 | N167: 2001-12-15 | O167: 2001-11-22 | P167: 2001-01-16
D168: 2 | E168: Götalands mellanbygder | F168: I | G168: 2001-03-31 | H168: 2001-02-05 | I168: 2001-04-21 | J168: -21 | K168: -49 | L168: 16 | N168: 2001-12-10 | O168: 2001-11-12 | P168: 2001-01-16
D169: 3 | E169: Götalands norra slättbygder | F169: R | G169: 2001-04-05 | H169: 2001-03-07 | I169: 2001-04-26 | J169: -46 | K169: -69 | L169: -9 | N169: 2001-11-15 | O169: 2001-10-23 | P169: 2001-12-22
D170: 4 | E170: Svealands slättbygder | F170: C | G170: 2001-04-10 | H170: 2001-02-25 | I170: 2001-05-11 | J170: -48 | K170: -69 | L170: -4 | N170: 2001-11-13 | O170: 2001-10-23 | P170: 2001-12-27
D171: 5 | E171: Götalands skogsbygder | F171: H | G171: 2001-03-30 | H171: 2001-01-31 | I171: 2001-04-21 | J171: -30 | K171: -59 | L171: 11 | N171: 2001-12-01 | O171: 2001-11-02 | P171: 2001-01-11
D172: 6 | E172: Mellersta Sveriges skogsbygder | F172: S | G172: 2001-04-13 | H172: 2001-03-13 | I172: 2001-04-26 | J172: -53 | K172: -69 | L172: -14 | N172: 2001-11-08 | O172: 2001-10-23 | P172: 2001-12-17
D173: 7 | E173: Nedre Norrland | F173: Y | G173: 2001-04-26 | H173: 2001-04-11 | I173: 2001-05-11 | J173: -59 | K173: -74 | L173: -34 | N173: 2001-11-02 | O173: 2001-10-18 | P173: 2001-11-27
D174: 8 | E174: Övre Norrland | F174: BD | G174: 2001-05-06 | H174: 2001-04-26 | I174: 2001-05-21 | J174: -71 | K174: -89 | L174: -49 | N174: 2001-10-21 | O174: 2001-10-03 | P174: 2001-11-12
D175: zHeader | G175: =CONCATENATE(zT_LetterNorm,"S") -> NormS | H175: =CONCATENATE(zT_LetterVarm,"S") -> VarmS | I175: =CONCATENATE(zt_LetterKall,"S") -> KallS | J175: =CONCATENATE(zT_LetterNorm,"T") -> NormT | K175: =CONCATENATE(zt_LetterKall,"T") -> KallT | L175: =CONCATENATE(zT_LetterVarm,"T") -> VarmT
E176: * kopplat till årsmånsklassning | G176: ** månad-dag | J176: *** Relativt 31/12 (se även not 1)
D177: Tabell | E177: Årsman: Snöfri period, tjälfri period = f(område, årsmånsklass) | M177: Gamla namn: | N177: snöfri
B178: Grödor
E180: Gröda
E182: Höstvete
E183: Höstråg
E184: Rågvete
E185: Höstkorn
E186: Höstraps
E187: Höstrybs
E188: Vårvete
E189: Vårkorn
E190: Havre
E191: Vårraps
E192: Vårrybs
E193: Ärter
E194: Oljelin
E195: Spånadslin
E196: Matpotatis
E197: Industripot
E198: Sockerbetor
E199: Vall
E200: Gröngödsling
E201: Åkerböna
D203: Lista | E203: Grödor | M203: Gamla namn: | N203: grödor
E205: Gröda | F205: grödtyp1 | G205: grödtyp2
E207: Höstvete | F207: 2 | G207: 0
E208: Höstråg | F208: 2 | G208: 0
E209: Rågvete | F209: 2 | G209: 0
E210: Höstkorn | F210: 2 | G210: 0
E211: Höstraps | F211: 2 | G211: 0
E212: Höstrybs | F212: 2 | G212: 0
E213: Vårvete | F213: 5 | G213: 1
E214: Vårkorn | F214: 5 | G214: 1
E215: Havre | F215: 5 | G215: 1
E216: Vårraps | F216: 5 | G216: 2
E217: Vårrybs | F217: 5 | G217: 2
E218: Ärter | F218: 5 | G218: 2
E219: Oljelin | F219: 5 | G219: 2
E220: Spånadslin | F220: 5 | G220: 2
E221: Matpotatis | F221: 3 | G221: 3
E222: Industripot | F222: 3 | G222: 3
E223: Sockerbetor | F223: 4 | G223: 4
E224: Vall | F224: 6 | G224: 0
E225: Vall 1:a skörd | F225: 6 | G225: 0
E226: Vall 2:a skörd | F226: 6 | G226: 6
E227: Gröngödsling | F227: 6 | G227: 0
E228: Åkerböna | F228: 2 | G228: 2
E229: zHeader | F229: grödtyp1 | G229: grödtyp2
D231: Tabell | E231: Grödtyper | M231: Gamla namn: | N231: XXXXXXX
B232: Tillfört organiskt material
E234: Tillfört organiskt material | F234: ts
F235: halt
E236: Konv. Nöt, fast | F236: 0.166
E237: Konv. Nöt, flyt | F237: 0.098
E238: Ekol. Nöt, fast | F238: 0.18
E239: Ekol. Nöt, flyt | F239: 0.075
E240: Svin, fast | F240: 0.238
E241: Svin, flyt | F241: 0.088
E242: zHeader | F242: ts
D244: Tabell | E244: Tillfört organiskt material: Typer och ts-halter | M244: Gamla namn: | N244: tillforganiskt
... 328 more rows

Sheet DBområde (hidden)
A1: Underlag för beräkning av antal dagar med bar mark (SMHI data 1931-60). Definition av perioders början och slut se WJ (73/74)
C2: Data | D2: Snöfri periods början på våren (mån-dag) | G2: Tjälfri periods slut på hösten (mån-dag)
A3: SCB (Sortval) | B3: Produktionsområden | C3: för län | D3: Medel* | E3: tidigast (torr/varm)* | F3: senast (kall/våt)* | G3: Medel* | H3: tidigast (kall/våt)* | I3: senast (torr/varm)*
A4: 1 | B4: Götalands södra slättbygder | C4: M | D4: 2001-03-14 | E4: 2001-01-26 | F4: 2001-04-16 | G4: 2001-12-15 | H4: 2001-11-22 | I4: 2001-01-16
A5: 2 | B5: Götalands mellanbygder | C5: I | D5: 2001-03-31 | E5: 2001-02-05 | F5: 2001-04-21 | G5: 2001-12-10 | H5: 2001-11-12 | I5: 2001-01-16
A6: 3 | B6: Götalands norra slättbygder | C6: R | D6: 2001-04-05 | E6: 2001-03-07 | F6: 2001-04-26 | G6: 2001-11-15 | H6: 2001-10-23 | I6: 2001-12-22
A7: 4 | B7: Svealands slättbygder | C7: C | D7: 2001-04-10 | E7: 2001-02-25 | F7: 2001-05-11 | G7: 2001-11-13 | H7: 2001-10-23 | I7: 2001-12-27
A8: 5 | B8: Götalands skogsbygder | C8: H | D8: 2001-03-30 | E8: 2001-01-31 | F8: 2001-04-21 | G8: 2001-12-01 | H8: 2001-11-02 | I8: 2001-01-11
A9: 6 | B9: Mellersta Sveriges skogsbygder | C9: S | D9: 2001-04-13 | E9: 2001-03-13 | F9: 2001-04-26 | G9: 2001-11-08 | H9: 2001-10-23 | I9: 2001-12-17
A10: 7 | B10: Nedre Norrland | C10: Y | D10: 2001-04-26 | E10: 2001-04-11 | F10: 2001-05-11 | G10: 2001-11-02 | H10: 2001-10-18 | I10: 2001-11-27
A11: 8 | B11: Övre Norrland | C11: BD | D11: 2001-05-06 | E11: 2001-04-26 | F11: 2001-05-21 | G11: 2001-10-21 | H11: 2001-10-03 | I11: 2001-11-12
D12: *kopplat till årsmånsklassning
C14: Data | D14: Korrigering av uppkomst i vårsäd (antal dagar) | G14: Korrigering av uppkomst i potatis och s-betor | J14: Korrigering av skörd***
A15: SCB (Sortval) | B15: Produktionsområden | C15: för län | D15: Median* | E15: torr/varm** | F15: kall/våt** | G15: Median* | H15: torr/varm** | I15: kall/våt** | J15: torr/varm** | K15: kall/våt**
A16: 1 | B16: Götalands södra slättbygder | C16: M | E16: -13 | F16: +17 | H16: -6 | I16: +13 | J16: -9 | K16: +6
A17: 2 | B17: Götalands mellanbygder | C17: I | E17: -21 | F17: +18 | H17: -11 | I17: +13 | J17: -8 | K17: +6
A18: 3 | B18: Götalands norra slättbygder | C18: R | E18: -17 | F18: +18 | H18: -11 | I18: +13 | J18: -8 | K18: +7
A19: 4 | B19: Svealands slättbygder | C19: C | E19: -13 | F19: +17 | H19: -13 | I19: +12 | J19: -7 | K19: +6
A20: 5 | B20: Götalands skogsbygder | C20: H | E20: -16 | F20: +19 | H20: -10 | I20: +14 | J20: -8 | K20: +7
A21: 6 | B21: Mellersta Sveriges skogsbygder | C21: S | E21: -19 | F21: +6 | H21: -14 | I21: +6 | J21: -8 | K21: +7
A22: 7 | B22: Nedre Norrland | C22: Y | E22: -9 | F22: +11 | H22: -4 | I22: +9 | J22: -10 | K22: +10
A23: 8 | B23: Övre Norrland | C23: BD | E23: -12 | F23: +13 | H23: -12 | I23: +8 | J23: -10 | K23: +10
D24: * Medianuppkomst för olika grödor från tabell **kopplat till årsmånsklassning ***alla grödor korrigeras som vårsäd
A26: Övriga förutsättningar
A27: Markyteskydd i stråsäd | C27: Inget t.o.m. 7 dagar efter uppkomst, därefter fullt
A28: Markyteskydd i oljeväxt/ärter | C28: Inget t.o.m. 15 dagar efter uppkomst, därefter fullt
A29: Markyteskydd i sockerbetor | C29: Inget t.o.m. 25 dagar efter uppkomst, därefter fullt
A30: Markyteskydd i potatis | C30: Inget t.o.m. 25 dagar efter uppkomst, därefter fullt
A31: 1:a stubbearbetning efter skörd | C31: 2 dagar efter skörd
A32: Bearbetning eller plöjning efter sockerbetor | C32: 5 dagar efter skörd
A35: Antal dagar med bar mark vår = | C35: Antal dagar mellan snöfri periods början och uppkomst + 7-25 dagar (beroende på gröda)
A36: Antal dagar med bar mark höst = | C36: Antal dagar mellan skörd + 2 (eller 5 beroende på gröda) dagar och tjälfri periods slut
A37: Totalt antal dagar med bar mark = | C37: Antal dagar med bar mark vår + höst
A39: växtstart
A40: gröd typ | C40: 2 | D40: 2 | E40: 2 | F40: 2 | G40: 2 | H40: 2 | I40: 5 | J40: 5 | K40: 5 | L40: 5 | M40: 5 | N40: 5 | O40: 5 | P40: 5 | Q40: 3 | R40: 3 | S40: 4 | T40: 6 | U40: 6 | V40: 6 | W40: 6 | X40: 2
A41: Fulltäckning | C41: 17 | D41: 17 | E41: 17 | F41: 17 | G41: 17 | H41: 17 | I41: 20 | J41: 20 | K41: 20 | L41: 20 | M41: 20 | N41: 20 | O41: 20 | P41: 20 | Q41: 20 | R41: 20 | S41: 20 | T41: 14 | U41: 5 | V41: 5 | W41: 14 | X41: 20
A42: SCB (Sortval) | B42: Produktionsområden | C42: Höstvete | D42: Höstråg | E42: Rågvete | F42: Höstkorn | G42: Höstraps | H42: Höstrybs | I42: Vårvete | J42: Vårkorn | K42: Havre | L42: Vårraps | M42: Vårrybs | N42: Ärter | O42: Oljelin | P42: Spånadslin | Q42: Matpotatis | R42: Industripot | S42: Sockerbetor | T42: Vall | U42: Vall 1:a skörd | V42: Vall 2:a skörd | W42: Gröngödsling | X42: Åkerböna
A43: 1 | B43: Götalands södra slättbygder | C43: 2001-04-06 | D43: 2001-04-06 | E43: 2001-04-06 | F43: 2001-04-06 | G43: 2001-04-06 | H43: 2001-04-06 | I43: 2001-04-25 | J43: 2001-04-26 | K43: 2001-05-02 | L43: 2001-04-26 | M43: 2001-04-26 | N43: 2001-04-26 | O43: 2001-04-26 | P43: 2001-04-26 | Q43: 2001-05-25 | R43: 2001-05-25 | S43: 2001-05-16 | T43: 2001-04-06 | U43: 2001-06-12 | V43: 2001-08-01 | W43: 2001-04-06
A44: 2 | B44: Götalands mellanbygder | C44: 2001-04-12 | D44: 2001-04-12 | E44: 2001-04-12 | F44: 2001-04-12 | G44: 2001-04-12 | H44: 2001-04-12 | I44: 2001-04-29 | J44: 2001-05-02 | K44: 2001-05-03 | L44: 2001-05-02 | M44: 2001-05-02 | N44: 2001-05-02 | O44: 2001-05-02 | P44: 2001-05-02 | Q44: 2001-05-31 | R44: 2001-05-31 | S44: 2001-05-21 | T44: 2001-04-12 | U44: 2001-06-14 | V44: 2001-08-03 | W44: 2001-04-12
A45: 3 | B45: Götalands norra slättbygder | C45: 2001-04-17 | D45: 2001-04-17 | E45: 2001-04-17 | F45: 2001-04-17 | G45: 2001-04-17 | H45: 2001-04-17 | I45: 2001-05-06 | J45: 2001-05-07 | K45: 2001-05-08 | L45: 2001-05-07 | M45: 2001-05-07 | N45: 2001-05-07 | O45: 2001-05-07 | P45: 2001-05-07 | Q45: 2001-06-04 | R45: 2001-06-04 | S45: 0 | T45: 2001-04-17 | U45: 2001-06-18 | V45: 2001-08-07 | W45: 2001-04-17
A46: 4 | B46: Svealands slättbygder | C46: 2001-04-26 | D46: 2001-04-26 | E46: 2001-04-26 | F46: 2001-04-26 | G46: 2001-04-26 | H46: 2001-04-26 | I46: 2001-05-12 | J46: 2001-05-14 | K46: 2001-05-15 | L46: 2001-05-14 | M46: 2001-05-14 | N46: 2001-05-14 | O46: 2001-05-14 | P46: 2001-05-14 | Q46: 2001-06-11 | R46: 2001-06-11 | S46: 0 | T46: 2001-04-26 | U46: 2001-06-20 | V46: 2001-08-09 | W46: 2001-04-26
A47: 5 | B47: Götalands skogsbygder | C47: 2001-05-20 | D47: 2001-05-20 | E47: 2001-05-20 | F47: 2001-05-20 | G47: 2001-05-20 | H47: 2001-05-20 | I47: 2001-05-11 | J47: 2001-05-11 | K47: 2001-05-13 | L47: 2001-05-11 | M47: 2001-05-11 | N47: 2001-05-11 | O47: 2001-05-11 | P47: 2001-05-11 | Q47: 2001-06-04 | R47: 2001-06-04 | S47: 2001-05-16 | T47: 2001-05-20 | U47: 2001-06-20 | V47: 2001-08-09 | W47: 2001-05-20
A48: 6 | B48: Mellersta Sveriges skogsbygder | C48: 2001-05-02 | D48: 2001-05-02 | E48: 2001-05-02 | F48: 2001-05-02 | G48: 2001-05-02 | H48: 2001-05-02 | I48: 2001-05-16 | J48: 2001-05-22 | K48: 2001-05-20 | L48: 2001-05-22 | M48: 2001-05-22 | N48: 2001-05-22 | O48: 2001-05-22 | P48: 2001-05-22 | Q48: 2001-06-11 | R48: 2001-06-11 | S48: 0 | T48: 2001-05-02 | U48: 2001-06-24 | V48: 2001-08-13 | W48: 2001-05-02
A49: 7 | B49: Nedre Norrland | C49: 0 | D49: 0 | E49: 0 | F49: 0 | G49: 0 | H49: 0 | I49: 0 | J49: 2001-06-02 | K49: 2001-05-30 | L49: 2001-06-02 | M49: 2001-06-02 | N49: 2001-06-02 | O49: 2001-06-02 | P49: 2001-06-02 | Q49: 2001-06-17 | R49: 2001-06-17 | S49: 0 | T49: 2001-05-13 | U49: 2001-07-04 | V49: 2001-08-23 | W49: 2001-05-13
A50: 8 | B50: Övre Norrland | C50: 0 | D50: 0 | E50: 0 | F50: 0 | G50: 0 | H50: 0 | I50: 0 | J50: 2001-06-09 | K50: 2001-06-08 | L50: 2001-06-09 | M50: 2001-06-09 | N50: 2001-06-09 | O50: 2001-06-09 | P50: 2001-06-09 | Q50: 2001-06-28 | R50: 2001-06-28 | S50: 0 | T50: 2001-05-20 | U50: 2001-07-06 | V50: 2001-08-25 | W50: 2001-05-20
A52: gröd typ | C52: 0 | D52: 0 | E52: 0 | F52: 0 | G52: 0 | H52: 0 | I52: 1 | J52: 1 | K52: 1 | L52: 2 | M52: 2 | N52: 2 | O52: 2 | P52: 2 | Q52: 3 | R52: 3 | S52: 4 | T52: 0 | U52: 0 | V52: 6 | W52: 0 | X52: 2
A53: Uppkomst - Potatis 22 dagar efter sättning (HL), sockerbetor 18 dagar efter sådd (Danisco), övriga 10 dagar efter sådd
A54: SCB (Sortval) | B54: Produktionsområden | C54: Höstvete | D54: Höstråg | E54: Rågvete | F54: Höstkorn | G54: Höstraps | H54: Höstrybs | I54: Vårvete | J54: Vårkorn | K54: Havre | L54: Vårraps | M54: Vårrybs | N54: Ärter | O54: Oljelin | P54: Spånadslin | Q54: Matpotatis | R54: Industripot | S54: Sockerbetor | T54: Vall | U54: Vall återväxt | W54: Gröngödsling | X54: Åkerböna
A55: 1 | B55: Götalands södra slättbygder | C55: 2000-09-27 | D55: 2000-09-28 | E55: 2000-09-28 | F55: 2000-09-27 | G55: 2000-08-26T17:08:34.286 | H55: 2000-08-26T17:08:34.286 | I55: 2000-04-25T17:08:34.286 | J55: 2000-04-26T17:08:34.286 | K55: 2000-05-02T06:51:25.714 | L55: 2000-04-26T17:08:34.286 | M55: 2000-04-26T17:08:34.286 | N55: 2000-04-26T17:08:34.286 | O55: 2000-04-26T17:08:34.286 | P55: 2000-04-26T17:08:34.286 | Q55: 2000-05-25T06:51:25.714 | R55: 2000-05-25T06:51:25.714 | S55: 2000-05-16 | T55: 0 | U55: 0 | W55: 2000-04-25T17:08:34.286
A56: 2 | B56: Götalands mellanbygder | C56: 2000-10-03T03:25:42.857 | D56: 2000-10-01T03:25:42.857 | E56: 2000-10-01T03:25:42.857 | F56: 2000-10-03T03:25:42.857 | G56: 2000-08-28T13:42:51.429 | H56: 2000-08-28T13:42:51.429 | I56: 2000-04-29T20:34:17.143 | J56: 2000-05-02T06:51:25.714 | K56: 2000-05-03T20:34:17.143 | L56: 2000-05-02T06:51:25.714 | M56: 2000-05-02T06:51:25.714 | N56: 2000-05-02T06:51:25.714 | O56: 2000-05-02T06:51:25.714 | P56: 2000-05-02T06:51:25.714 | Q56: 2000-05-31T13:42:51.429 | R56: 2000-05-31T13:42:51.429 | S56: 2000-05-21 | T56: 0 | U56: 0 | W56: 2000-04-29T20:34:17.143
A57: 3 | B57: Götalands norra slättbygder | C57: 2000-09-27T13:42:51.429 | D57: 2000-09-22 | E57: 2000-09-22 | F57: 2000-09-27T13:42:51.429 | G57: 2000-08-19T13:42:51.429 | H57: 2000-08-19T13:42:51.429 | I57: 2000-05-06T13:42:51.429 | J57: 2000-05-07T06:51:25.714 | K57: 2000-05-08T13:42:51.429 | L57: 2000-05-07T06:51:25.714 | M57: 2000-05-07T06:51:25.714 | N57: 2000-05-07T06:51:25.714 | O57: 2000-05-07T06:51:25.714 | P57: 2000-05-07T06:51:25.714 | Q57: 2000-06-04T03:25:42.857 | R57: 2000-06-04T03:25:42.857 | S57: 00:00:00 | T57: 0 | U57: 0 | W57: 2000-05-06T13:42:51.429
A58: 4 | B58: Svealands slättbygder | C58: 2000-09-22T06:51:25.714 | D58: 2000-09-15 | E58: 2000-09-15 | F58: 2000-09-22T06:51:25.714 | G58: 2000-08-19 | H58: 2000-08-19T14:24:00 | I58: 2000-05-12T13:42:51.429 | J58: 2000-05-14T20:34:17.143 | K58: 2000-05-15 | L58: 2000-05-14T20:34:17.143 | M58: 2000-05-14T20:34:17.143 | N58: 2000-05-14T20:34:17.143 | O58: 2000-05-14T20:34:17.143 | P58: 2000-05-14T20:34:17.143 | Q58: 2000-06-11T17:08:34.286 | R58: 2000-06-11T17:08:34.286 | S58: 00:00:00 | T58: 0 | U58: 0 | W58: 2000-05-12T13:42:51.429
A59: 5 | B59: Götalands skogsbygder | C59: 2000-09-27T17:08:34.286 | D59: 2000-09-28T13:42:51.429 | E59: 2000-09-28T13:42:51.429 | F59: 2000-09-27T17:08:34.286 | G59: 2000-08-23T17:08:34.286 | H59: 2000-08-23T17:08:34.286 | I59: 2000-05-11T10:17:08.571 | J59: 2000-05-11T20:34:17.143 | K59: 2000-05-13T03:25:42.857 | L59: 2000-05-11T20:34:17.143 | M59: 2000-05-11T20:34:17.143 | N59: 2000-05-11T20:34:17.143 | O59: 2000-05-11T20:34:17.143 | P59: 2000-05-11T20:34:17.143 | Q59: 2000-06-04T10:17:08.571 | R59: 2000-06-04T10:17:08.571 | S59: 2000-05-16 | T59: 0 | U59: 0 | W59: 2000-05-11T10:17:08.571
A60: 6 | B60: Mellersta Sveriges skogsbygder | C60: 2000-09-25T17:08:34.286 | D60: 2000-09-20T06:51:25.714 | E60: 2000-09-20T06:51:25.714 | F60: 2000-09-25T17:08:34.286 | G60: 2000-08-23 | H60: 2000-08-23 | I60: 2000-05-16 | J60: 2000-05-22T10:17:08.571 | K60: 2000-05-20 | L60: 2000-05-22T10:17:08.571 | M60: 2000-05-22T10:17:08.571 | N60: 2000-05-22T10:17:08.571 | O60: 2000-05-22T10:17:08.571 | P60: 2000-05-22T10:17:08.571 | Q60: 2000-06-11T06:51:25.714 | R60: 2000-06-11T06:51:25.714 | S60: 00:00:00 | T60: 0 | U60: 0 | W60: 2000-05-16
A61: 7 | B61: Nedre Norrland | C61: 0 | D61: 0 | E61: 0 | F61: 0 | G61: 0 | H61: 0 | I61: 0 | J61: 2000-06-02T03:25:42.857 | K61: 2000-05-30T13:42:51.429 | L61: 2000-06-02T03:25:42.857 | M61: 2000-06-02T03:25:42.857 | N61: 2000-06-02T03:25:42.857 | O61: 2000-06-02T03:25:42.857 | P61: 2000-06-02T03:25:42.857 | Q61: 2000-06-17T10:17:08.571 | R61: 2000-06-17T10:17:08.571 | S61: 00:00:00 | T61: 0 | U61: 0 | W61: 0
A62: 8 | B62: Övre Norrland | C62: 0 | D62: 0 | E62: 0 | F62: 0 | G62: 0 | H62: 0 | I62: 0 | J62: 2000-06-09T03:25:42.857 | K62: 2000-06-08T10:17:08.571 | L62: 2000-06-09T03:25:42.857 | M62: 2000-06-09T03:25:42.857 | N62: 2000-06-09T03:25:42.857 | O62: 2000-06-09T03:25:42.857 | P62: 2000-06-09T03:25:42.857 | Q62: 2000-06-28T06:51:25.714 | R62: 2000-06-28T06:51:25.714 | S62: 00:00:00 | T62: 0 | U62: 0 | W62: 0
A65: Skördetidpunkt (huvudsakligen från SCB Jordbruksstatistisk årsbok 1987-1993
A66: SCB (Sortval) | B66: Produktionsområden | C66: Höstvete | D66: Höstråg | E66: Rågvete | F66: Höstkorn | G66: Höstraps | H66: Höstrybs | I66: Vårvete | J66: Vårkorn | K66: Havre | L66: Vårraps | M66: Vårrybs | N66: Ärter | O66: Oljelin | P66: Spånadslin | Q66: Matpotatis | R66: Industripot | S66: Sockerbetor | T66: Vall
A67: 1 | B67: Götalands södra slättbygder | C67: 2001-08-24 | D67: 2001-08-12 | E67: =D67+7 -> 2001-08-19 | F67: =C67-30 -> 2001-07-25 | G67: 2001-08-12 | H67: 2001-08-12 | I67: 2001-08-29 | J67: 2001-08-15 | K67: 2001-08-29 | L67: =J67+20 -> 2001-09-04 | M67: =J67+5 -> 2001-08-20 | N67: 2001-08-15 | O67: 2001-08-19 | P67: 2001-08-15 | Q67: 2001-09-20 | R67: =Q67+12 -> 2001-10-02 | S67: 2001-10-11 | T67: 2001-06-12
A68: 2 | B68: Götalands mellanbygder | C68: 2001-08-25 | D68: 2001-08-12 | E68: 2001-08-19 | F68: 2001-07-26 | G68: 2001-08-12 | H68: 2001-08-12 | I68: 2001-08-30 | J68: 2001-08-17 | K68: 2001-08-27 | L68: =J68+20 -> 2001-09-06 | M68: =J68+5 -> 2001-08-22 | N68: 2001-08-17 | O68: 2001-08-25 | P68: 2001-08-21 | Q68: 2001-09-21 | R68: =Q68+12 -> 2001-10-03 | S68: 2001-10-18 | T68: 2001-06-14
A69: 3 | B69: Götalands norra slättbygder | C69: 2001-08-28 | D69: 2001-08-14 | E69: 2001-08-21 | F69: 2001-07-29 | G69: 2001-08-14 | H69: 2001-08-14 | I69: 2001-09-08 | J69: 2001-08-31 | K69: 2001-09-05 | L69: 2001-09-20 | M69: 2001-09-05 | N69: 2001-08-31 | O69: 2001-08-30 | P69: 2001-08-26 | Q69: 2001-09-20 | R69: 2001-10-02 | S69: 0 | T69: 2001-06-18
A70: 4 | B70: Svealands slättbygder | C70: 2001-08-27 | D70: 2001-08-14 | E70: 2001-08-21 | F70: 2001-07-28 | G70: 2001-08-14 | H70: 2001-08-14 | I70: 2001-09-06 | J70: 2001-09-02 | K70: 2001-09-04 | L70: 2001-09-22 | M70: 2001-09-07 | N70: 2001-09-02 | O70: 2001-09-06 | P70: 2001-09-02 | Q70: 2001-09-17 | R70: 2001-09-29 | S70: 0 | T70: 2001-06-20
A71: 5 | B71: Götalands skogsbygder | C71: 2001-08-29 | D71: 2001-08-18 | E71: 2001-08-25 | F71: 2001-07-30 | G71: 2001-08-18 | H71: 2001-08-18 | I71: 2001-09-11 | J71: 2001-09-01 | K71: 2001-09-10 | L71: 2001-09-21 | M71: 2001-09-06 | N71: 2001-09-01 | O71: 2001-09-03 | P71: 2001-08-30 | Q71: 2001-09-22 | R71: 2001-10-04 | S71: 2001-10-11 | T71: 2001-06-20
A72: 6 | B72: Mellersta Sveriges skogsbygder | C72: 2001-08-29 | D72: 2001-08-18 | E72: 2001-08-25 | F72: 2001-07-30 | G72: 2001-08-18 | H72: 2001-08-18 | I72: 2001-09-17 | J72: 2001-09-08 | K72: 2001-09-09 | L72: 2001-09-28 | M72: 2001-09-13 | N72: 2001-09-08 | O72: 2001-09-14 | P72: 2001-09-10 | Q72: 2001-09-17 | R72: 2001-09-29 | S72: 0 | T72: 2001-06-24
A73: 7 | B73: Nedre Norrland | C73: 0 | D73: 0 | E73: 0 | F73: 0 | G73: 0 | H73: 0 | I73: 0 | J73: 2001-09-18 | K73: 2001-09-17 | L73: 2001-10-08 | M73: 2001-09-23 | N73: 2001-09-18 | O73: 2001-09-25 | P73: 2001-09-21 | Q73: 2001-09-15 | R73: 2001-09-27 | S73: 0 | T73: 2001-07-04
A74: 8 | B74: Övre Norrland | C74: 0 | D74: 0 | E74: 0 | F74: 0 | G74: 0 | H74: 0 | I74: 0 | J74: 2001-09-18 | K74: 2001-09-24 | L74: 2001-10-08 | M74: 2001-09-23 | N74: 2001-09-18 | O74: 2001-10-02 | P74: 2001-09-28 | Q74: 2001-09-09 | R74: 2001-09-21 | S74: 0 | T74: 2001-07-06

Sheet Databas (hidden)
A1: Produktionsområden | B1: Höstvete | C1: Vårvete | D1: Höstråg | E1: Vårkorn | F1: Havre | G1: Matpotatis | H1: Potatis för stärkelse | I1: Höstraps | J1: Vårraps | K1: Höstrybs | L1: Vårrybs | M1: Sockerbetor | N1: Vall | O1: Dräneringsbehov I fält | P1: Kommentar | Q1: indextal | S1: Mullhalt | T1: kommentar | U1: Indexvärde
A2: Götalands södra slättbygder | B2: 7621 | C2: 5781 | D2: 6204 | E2: 5352 | F2: 4553 | G2: 40890 | H2: 39878 | I2: 2733 | J2: 1734 | K2: Inget värde | L2: 1551 | M2: 46447 | N2: 4650 | O2: Markytan fast, inga fotavtryck | P2: Mycket väldränerat | Q2: 6 | S2: Mycket mullrik (>12%) | T2: Ofta naturlig hög mullhalt | U2: 5
A3: Götalands mellanbygder | B3: 6229 | C3: 5346 | D3: 4825 | E3: 4107 | F3: 3824 | G3: 38787 | H3: 41332 | I3: 2338 | J3: 1495 | K3: Inget värde | L3: 1218 | M3: 42493 | N3: 4980 | O3: Markytan mindre fast, fotavtryck< 2cm djupa | P3: Väldränerat | Q3: 5 | S3: Mullrik (6-12%) | T3: Förustättningar för mycket god markstruktur | U3: 4
A4: Götalands norra slättbygder | B4: 6390 | C4: 4652 | D4: 5445 | E4: 4593 | F4: 3906 | G4: 36788 | H4: Inget värde | I4: 2420 | J4: 1785 | K4: 1714 | L4: 1415 | M4: Inget värde | N4: 4510 | O4: Markytan något mjuk, fotavtryck 2-5 cm djupa | P4: Tillfredställande dränerat | Q4: 4 | S4: Måttligt mullhaltig (3-6%) | T4: Förustättningar för god markstruktur | U4: 3
A5: Svealands slättbygder | B5: 5980 | C5: 4544 | D5: 4577 | E5: 4355 | F5: 3791 | G5: 28173 | H5: Inget värde | I5: 2399 | J5: 1752 | K5: 1643 | L5: 1526 | M5: Inget värde | N5: 4360 | O5: Markytan rejält mjuk, fotavtryck > 5 cm djupa | P5: Ett visst dränerigsbehov | Q5: 3 | S5: Något mullhaltig (2-3%) | T5: Kan ge odlingsproblem | U5: 2
A6: Götalands skogsbygder | B6: 5308 | C6: 3699 | D6: 4023 | E6: 3442 | F6: 3105 | G6: 32230 | H6: 38123 | I6: 2072 | J6: 1445 | K6: Inget värde | L6: 1315 | M6: 43262 | N6: 4010 | O6: markytan mycket mjuk och blöt, fotavtryck >7-10 cm | P6: Stort dräneringsbehov | Q6: 2 | S6: mullfattig (<2%) | T6: Dåliga odlingsegenskaper | U6: 1
A7: Mellersta Sveriges skogsbygder | B7: 5997 | C7: 4219 | D7: 4427 | E7: 3529 | F7: 3408 | G7: 25410 | H7: Inget värde | I7: 2368 | J7: 1791 | K7: 1524 | L7: 1151 | M7: Inget värde | N7: 3800 | O7: Vatten stående på ytan | P7: Mycket stort dräneringsbehov | Q7: 1
A8: Nedre Norrland | B8: Inget värde | C8: Inget värde | D8: Inget värde | E8: 2402 | F8: 2263 | G8: 20132 | H8: Inget värde | I8: Inget värde | J8: Inget värde | K8: Inget värde | L8: 1075 | M8: Inget värde | N8: 3660
A9: Övre Norrland | B9: Inget värde | C9: Inget värde | D9: Inget värde | E9: 2268 | F9: 2465 | G9: 18224 | H9: Inget värde | I9: Inget värde | J9: Inget värde | K9: Inget värde | L9: Inget värde | M9: Inget värde | N9: 3610
A11: Områdesval | B11: 1
W12: koefficienter
A13: Dränstatus | D13: BOOL | G13: Arrondering | I13: Jordart tabell 12 | J13: Jordart (kornstorlek, mm) | K13: Lerhalt (%) resp org halt | L13: Utrullningsprov (trådtjocklek) | M13: Färg i torrt tillstånd hos alvjorden | N13: Dränerings-behov | O13: Dräneringsbehov | P13: Markstruktur | S13: Dikesavstånd | T13: medel | V13: Gröda | W13: ts | X13: halm/blas | Y13: bladfall/spill | Z13: rötter
A14: Systemtäckdikat | D14: Ja | G14: Regelbunden | P14: Antal tramp | Q14: Markstruktur | R14: indextal | S14: <10 | T14: 10 | V14: Höstvete | W14: 0.85 | X14: 1 | Y14: 0.17 | Z14: 1.17
A15: Behovstäckdikat | D15: Nej | G15: Något Oregelbunden | I15: Mycket styv lera | J15: Mycket styv lera | K15: >60 | L15: < 1 mm | M15: Mörkgrå eller mörkt gråbrun | N15: 14 | O15: 10-14 | P15: 0 | Q15: Mycket lucker | R15: 7 | S15: 10-14 | T15: 12 | V15: Höstråg | W15: 0.85 | X15: 1 | Y15: 0.17 | Z15: 1.17
A16: Ej rördikat | E16: Jordbearbetning | G16: Mycket Oregelbunden | I16: Styv lera och styv moränlera, ej rotspärr | J16: Styv lera | K16: 40-60 | L16: 1 mm | M16: Grå, gråbrun eller rödbrun | N16: 16 | O16: 12-16 | P16: 1 | Q16: lucker | R16: 6 | S16: 12-16 | T16: 14 | V16: Rågvete | W16: 0.85 | X16: 1 | Y16: 0.17 | Z16: 1.17
E17: Stubbearbetning | I17: Styv lera och styv moränlera, rotspärr | N17: 14 | O17: 10-14 | P17: 2 | Q17: något lucker | R17: 5 | S17: 14-18 | T17: 16 | V17: Höstkorn | W17: 0.85 | X17: 1 | Y17: 0.17 | Z17: 1.17
E18: Sprutning stubb | I18: Mellanlera, ej rotspärr | J18: Mellanlera | K18: 25-40 | L18: 1-1,5 mm | M18: Tämligen ljust grå eller ljust rödbrun | N18: 18 | O18: 14-18 | P18: 3 | Q18: något tät | R18: 4 | S18: 16-20 | T18: 18 | V18: Höstraps | W18: 0.91 | X18: 1.5 | Y18: 0.25 | Z18: 1.75
E19: Plöjning | I19: Moränmellanlera, ej rotspärr | N19: 18 | O19: 14-18 | P19: 4-5 | Q19: tät | R19: 3 | S19: 15-25 | T19: 20 | V19: Höstrybs | W19: 0.91 | X19: 1.5 | Y19: 0.25 | Z19: 1.75
E20: Betongvält | I20: Mellanlera och moränmellanlera, rotspärr | N20: 16 | O20: 12-16 | P20: 6-7 | Q20: mycket tät | R20: 2 | S20: >25 | T20: 25 | V20: Vårvete | W20: 0.85 | X20: 1 | Y20: 0.17 | Z20: 1.17
A21: Årsmån | B21: =MATCH("Moränlättlera",jordarter2,0) -> 8 | E21: Vältning | I21: Lättlera | J21: Lättlera | K21: 15-25 | L21: ca 2 mm | M21: Ljusgrå | N21: 20 | O21: 16-20 | P21: >7 | Q21: extremt tät | R21: 1 | V21: Vårkorn | W21: 0.85 | X21: 0.82 | Y21: 0.14 | Z21: 0.96
A22: Normal | E22: Harvning | I22: Moränlättlera | N22: 20 | O22: 16-20 | V22: Havre | W22: 0.85 | X22: 1 | Y22: 0.17 | Z22: 1.17
A23: Kall/våt | E23: Sladd | I23: Lerig finmo + lerig moränjord | N23: 25 | O23: 15-25 | V23: Vårraps | W23: 0.91 | X23: 1.5 | Y23: 0.25 | Z23: 1.75
A24: Varm/torr | E24: Fräsning | I24: Lerfria och svagt leriga jordar + lerig sand och lerig grovmo | N24: Behovs | O24: Behovsd. El. 20-40 | V24: Vårrybs | W24: 0.91 | X24: 1.5 | Y24: 0.25 | Z24: 1.75
E25: Kupning | I25: Kärrtorvjord, väl förmultnad | J25: Kärrtorvjord | K25: >30% org mtrl | L25: Näringsrik | M25: Gul->svart, beror av förmultningsgrad | N25: 25 | O25: 10-25 | V25: Ärter | W25: 0.85 | X25: 0.82 | Y25: 0.14 | Z25: 0.96
E26: Stensträngläggning | I26: Mosstorvjord, svagt förmultnad | J26: Mosstorvjord | K26: >30% org mtrl | L26: Näringsfattig | M26: Gul->svart, beror av förmultningsgrad | N26: 40 | O26: 25-40 | V26: Oljelin | W26: 0.85 | X26: 2.9 | Y26: 0.25 | Z26: 1.75
E27: Stenplockning lastare | I27: Gyttjejord | J27: Gyttja | K27: >30 % gyttja | L27: Tät, klibbar ej, mindre elastisk | M27: Brun, brungrön, mörknar i luft, men ljusnar åter vid torkning | N27: Behovs | O27: Behovsd. | V27: Spånadslin | W27: 0.85 | X27: 5.8 | Y27: 0.25 | Z27: 1.75
E28: Djupkult | V28: Matpotatis | W28: 0.22 | X28: 0.21 | Y28: 0.05 | Z28: 0.04
E29: Sådd | V29: Industripot | W29: 0.22 | X29: 0.21 | Y29: 0.07 | Z29: 0.04
E30: Insådd vall | J30: Torvjord, väl förmultnad | N30: 25 | V30: Sockerbetor | W30: 0.24 | X30: 0.8 | Y30: 0.05 | Z30: 0.04
E31: Sådd kombi | J31: Torvjord, svagt förmultnad | N31: 40 | V31: Vall | W31: 0.835 | X31: 0 | Y31: 0.25 | Z31: 1.25
E32: Sättning | J32: Mjäla (0,002-0,02) | K32: 2-5 | L32: 4-6 mm | M32: Gråvit | N32: 20 | V32: Gröngödsling | W32: 0.835 | X32: 0 | Y32: 1.25 | Z32: 1.25
E33: Vältning | V33: Åkerböna | W33: 0.82 | X33: 0.79 | Y33: 0.13 | Z33: 0.79
E34: Trnsp. utsäde
E36: Sprutning ogräs | J36: Grus (2-20) | K36: <2 | L36: Kan ej rullas | M36: Som rödaktig sand | N36: Behovsdikning | P36: Konv. Nöt, fast
E37: Hackning ogräs | J37: Sand (0,2-2) | K37: <2 | L37: Kan ej rullas | M37: Som rödaktig sand | N37: Behovsdikning | P37: Konv. Nöt, flyt
E38: Flamning | J38: Moränsand | K38: 2-5 | L38: Kan ej rullas | M38: Som rödaktig sand | N38: Behovsdikning | P38: Ekol. Nöt, fast
E39: Ogräsrensning | J39: Grovmo (0,06-0,2) | K39: <2 | L39: Kan ej rullas | M39: Ljusgrå eller med svag sandfärg | N39: Behovsdikning | P39: Ekol. Nöt, flyt
J40: Finmo (0,02-0,06) | K40: <2 | L40: 4-6 mm | M40: Ljusgrå | N40: Behovsdikning | P40: Svin, fast
E41: Mineralgödsel spridning | J41: Moränmo | K41: 2-5 | L41: 4-6 mm | M41: Ljusgrå | N41: Behovsdikning | P41: Svin, flyt
E42: Spridning special | J42: Gyttjelera | K42: 1-6 % gyttja | L42: Kort brott, grynig, tärningar, klibbar | M42: Grå, svagt grönaktig, | N42: Behovsdikning
E43: Sprutning svamp+insekt | J43: Lergyttja | K43: 6-30 % gyttja | L43: Kort brott, klibb-ar, något elastisk | M43: Grönaktigt gulgrå/blågrå, vitnar vid torkning | N43: 20
E44: Sprutning Mikro | J44: Leriga jordar | K44: 5-15 | L44: ca 3 mm | M44: Ljusgrå | N44: 25
E46: Huggning (vall)
E47: Hackvagn inkl. transp.
E48: Vändning
E49: Strängläggning
E50: Balning
E51: Inplastning
E52: Betesputsning/träda
E53: Putsning frövall
E54: Pressning hö
E56: Strängläggning
E57: Tröskning
E58: Hemtransport
E60: Halmhackning
E61: Vändning halm
E62: Hemtransport
E63: Lastning
E64: Pressning halm
E66: Omrörning
E67: Fastgödsel
E68: Lastning
E69: Flytgödseltunna (spridning)
E70: Spridning hästgödsel
E71: Spridning slam
E73: Uppt.mask.1pot.
E74: Uppt.mask.2 s.betor
E75: Uppt.mask.3 morot
E76: Stukläggning
E77: Lastning
E78: Transport
E79: Bevattning flyttning
E80: Pump antal, tim/omgång

Sheet Torkdagar
A1: Område | B1: Väder | C1: Jordart | D1: Gröda | E1: Torkdagar
A2: 1 | B2: kall sommar | C2: 1 | D2: Ärter | E2: 34
A3: 1 | B3: kall sommar | C3: 1 | D3: Gröngödsling | E3: 71
A4: 1 | B4: kall sommar | C4: 1 | D4: Havre | E4: 19
A5: 1 | B5: kall sommar | C5: 1 | D5: Höstkorn | E5: 59
A6: 1 | B6: kall sommar | C6: 1 | D6: Höstråg | E6: 59
A7: 1 | B7: kall sommar | C7: 1 | D7: Höstraps | E7: 59
A8: 1 | B8: kall sommar | C8: 1 | D8: Höstrybs | E8: 59
A9: 1 | B9: kall sommar | C9: 1 | D9: Höstvete | E9: 59
A10: 1 | B10: kall sommar | C10: 1 | D10: Oljelin | E10: 34
A11: 1 | B11: kall sommar | C11: 1 | D11: Rågvete | E11: 59
A12: 1 | B12: kall sommar | C12: 1 | D12: Spånadslin | E12: 34
A13: 1 | B13: kall sommar | C13: 1 | D13: Vall | E13: 71
A14: 1 | B14: kall sommar | C14: 1 | D14: Vårkorn | E14: 34
A15: 1 | B15: kall sommar | C15: 1 | D15: Vårraps | E15: 34
A16: 1 | B16: kall sommar | C16: 1 | D16: Vårrybs | E16: 34
A17: 1 | B17: kall sommar | C17: 1 | D17: Vårvete | E17: 38
A18: 1 | B18: kall sommar | C18: 2 | D18: Ärter | E18: 0
A19: 1 | B19: kall sommar | C19: 2 | D19: Gröngödsling | E19: 59
A20: 1 | B20: kall sommar | C20: 2 | D20: Havre | E20: 0
A21: 1 | B21: kall sommar | C21: 2 | D21: Höstkorn | E21: 45
A22: 1 | B22: kall sommar | C22: 2 | D22: Höstråg | E22: 45
A23: 1 | B23: kall sommar | C23: 2 | D23: Höstraps | E23: 45
A24: 1 | B24: kall sommar | C24: 2 | D24: Höstrybs | E24: 45
A25: 1 | B25: kall sommar | C25: 2 | D25: Höstvete | E25: 45
A26: 1 | B26: kall sommar | C26: 2 | D26: Oljelin | E26: 0
A27: 1 | B27: kall sommar | C27: 2 | D27: Rågvete | E27: 45
A28: 1 | B28: kall sommar | C28: 2 | D28: Spånadslin | E28: 0
A29: 1 | B29: kall sommar | C29: 2 | D29: Vall | E29: 59
A30: 1 | B30: kall sommar | C30: 2 | D30: Vårkorn | E30: 0
A31: 1 | B31: kall sommar | C31: 2 | D31: Vårraps | E31: 0
A32: 1 | B32: kall sommar | C32: 2 | D32: Vårrybs | E32: 0
A33: 1 | B33: kall sommar | C33: 2 | D33: Vårvete | E33: 1
A34: 1 | B34: kall sommar | C34: 3 | D34: Ärter | E34: 34
A35: 1 | B35: kall sommar | C35: 3 | D35: Gröngödsling | E35: 71
A36: 1 | B36: kall sommar | C36: 3 | D36: Havre | E36: 20
A37: 1 | B37: kall sommar | C37: 3 | D37: Höstkorn | E37: 60
A38: 1 | B38: kall sommar | C38: 3 | D38: Höstråg | E38: 60
A39: 1 | B39: kall sommar | C39: 3 | D39: Höstraps | E39: 60
A40: 1 | B40: kall sommar | C40: 3 | D40: Höstrybs | E40: 60
A41: 1 | B41: kall sommar | C41: 3 | D41: Höstvete | E41: 60
A42: 1 | B42: kall sommar | C42: 3 | D42: Oljelin | E42: 34
A43: 1 | B43: kall sommar | C43: 3 | D43: Rågvete | E43: 60
A44: 1 | B44: kall sommar | C44: 3 | D44: Spånadslin | E44: 34
A45: 1 | B45: kall sommar | C45: 3 | D45: Vall | E45: 71
A46: 1 | B46: kall sommar | C46: 3 | D46: Vårkorn | E46: 34
A47: 1 | B47: kall sommar | C47: 3 | D47: Vårraps | E47: 34
A48: 1 | B48: kall sommar | C48: 3 | D48: Vårrybs | E48: 34
A49: 1 | B49: kall sommar | C49: 3 | D49: Vårvete | E49: 38
A50: 1 | B50: kall sommar | C50: 4 | D50: Ärter | E50: 0
A51: 1 | B51: kall sommar | C51: 4 | D51: Gröngödsling | E51: 29
A52: 1 | B52: kall sommar | C52: 4 | D52: Havre | E52: 0
A53: 1 | B53: kall sommar | C53: 4 | D53: Höstkorn | E53: 25
A54: 1 | B54: kall sommar | C54: 4 | D54: Höstråg | E54: 25
A55: 1 | B55: kall sommar | C55: 4 | D55: Höstraps | E55: 25
A56: 1 | B56: kall sommar | C56: 4 | D56: Höstrybs | E56: 25
A57: 1 | B57: kall sommar | C57: 4 | D57: Höstvete | E57: 25
A58: 1 | B58: kall sommar | C58: 4 | D58: Oljelin | E58: 0
A59: 1 | B59: kall sommar | C59: 4 | D59: Rågvete | E59: 25
A60: 1 | B60: kall sommar | C60: 4 | D60: Spånadslin | E60: 0
A61: 1 | B61: kall sommar | C61: 4 | D61: Vall | E61: 29
A62: 1 | B62: kall sommar | C62: 4 | D62: Vårkorn | E62: 0
A63: 1 | B63: kall sommar | C63: 4 | D63: Vårraps | E63: 0
A64: 1 | B64: kall sommar | C64: 4 | D64: Vårrybs | E64: 0
A65: 1 | B65: kall sommar | C65: 4 | D65: Vårvete | E65: 0
A66: 1 | B66: kall sommar | C66: 5 | D66: Ärter | E66: 0
A67: 1 | B67: kall sommar | C67: 5 | D67: Gröngödsling | E67: 52
A68: 1 | B68: kall sommar | C68: 5 | D68: Havre | E68: 0
A69: 1 | B69: kall sommar | C69: 5 | D69: Höstkorn | E69: 41
A70: 1 | B70: kall sommar | C70: 5 | D70: Höstråg | E70: 41
A71: 1 | B71: kall sommar | C71: 5 | D71: Höstraps | E71: 41
A72: 1 | B72: kall sommar | C72: 5 | D72: Höstrybs | E72: 41
A73: 1 | B73: kall sommar | C73: 5 | D73: Höstvete | E73: 41
A74: 1 | B74: kall sommar | C74: 5 | D74: Oljelin | E74: 0
A75: 1 | B75: kall sommar | C75: 5 | D75: Rågvete | E75: 41
A76: 1 | B76: kall sommar | C76: 5 | D76: Sockerbetor | E76: 0
A77: 1 | B77: kall sommar | C77: 5 | D77: Spånadslin | E77: 0
A78: 1 | B78: kall sommar | C78: 5 | D78: Vall | E78: 52
A79: 1 | B79: kall sommar | C79: 5 | D79: Vårkorn | E79: 0
A80: 1 | B80: kall sommar | C80: 5 | D80: Vårraps | E80: 0
A81: 1 | B81: kall sommar | C81: 5 | D81: Vårrybs | E81: 0
A82: 1 | B82: kall sommar | C82: 5 | D82: Vårvete | E82: 0
A83: 1 | B83: kall sommar | C83: 6 | D83: Ärter | E83: 26
A84: 1 | B84: kall sommar | C84: 6 | D84: Gröngödsling | E84: 69
A85: 1 | B85: kall sommar | C85: 6 | D85: Havre | E85: 11
A86: 1 | B86: kall sommar | C86: 6 | D86: Höstkorn | E86: 57
A87: 1 | B87: kall sommar | C87: 6 | D87: Höstråg | E87: 57
A88: 1 | B88: kall sommar | C88: 6 | D88: Höstraps | E88: 57
A89: 1 | B89: kall sommar | C89: 6 | D89: Höstrybs | E89: 57
A90: 1 | B90: kall sommar | C90: 6 | D90: Höstvete | E90: 57
A91: 1 | B91: kall sommar | C91: 6 | D91: Oljelin | E91: 26
A92: 1 | B92: kall sommar | C92: 6 | D92: Rågvete | E92: 57
A93: 1 | B93: kall sommar | C93: 6 | D93: Sockerbetor | E93: 0
A94: 1 | B94: kall sommar | C94: 6 | D94: Spånadslin | E94: 26
A95: 1 | B95: kall sommar | C95: 6 | D95: Vall | E95: 69
A96: 1 | B96: kall sommar | C96: 6 | D96: Vårkorn | E96: 26
A97: 1 | B97: kall sommar | C97: 6 | D97: Vårraps | E97: 26
A98: 1 | B98: kall sommar | C98: 6 | D98: Vårrybs | E98: 26
A99: 1 | B99: kall sommar | C99: 6 | D99: Vårvete | E99: 28
A100: 1 | B100: kall sommar | C100: 7 | D100: Ärter | E100: 11
A101: 1 | B101: kall sommar | C101: 7 | D101: Gröngödsling | E101: 63
A102: 1 | B102: kall sommar | C102: 7 | D102: Havre | E102: 0
A103: 1 | B103: kall sommar | C103: 7 | D103: Höstkorn | E103: 52
A104: 1 | B104: kall sommar | C104: 7 | D104: Höstråg | E104: 52
A105: 1 | B105: kall sommar | C105: 7 | D105: Höstraps | E105: 52
A106: 1 | B106: kall sommar | C106: 7 | D106: Höstrybs | E106: 52
A107: 1 | B107: kall sommar | C107: 7 | D107: Höstvete | E107: 52
A108: 1 | B108: kall sommar | C108: 7 | D108: Industripot | E108: 0
A109: 1 | B109: kall sommar | C109: 7 | D109: Matpotatis | E109: 0
A110: 1 | B110: kall sommar | C110: 7 | D110: Oljelin | E110: 11
A111: 1 | B111: kall sommar | C111: 7 | D111: Rågvete | E111: 52
A112: 1 | B112: kall sommar | C112: 7 | D112: Sockerbetor | E112: 0
A113: 1 | B113: kall sommar | C113: 7 | D113: Spånadslin | E113: 11
A114: 1 | B114: kall sommar | C114: 7 | D114: Vall | E114: 63
A115: 1 | B115: kall sommar | C115: 7 | D115: Vårkorn | E115: 11
A116: 1 | B116: kall sommar | C116: 7 | D116: Vårraps | E116: 11
A117: 1 | B117: kall sommar | C117: 7 | D117: Vårrybs | E117: 11
A118: 1 | B118: kall sommar | C118: 7 | D118: Vårvete | E118: 11
A119: 1 | B119: kall sommar | C119: 8 | D119: Ärter | E119: 0
A120: 1 | B120: kall sommar | C120: 8 | D120: Gröngödsling | E120: 58
A121: 1 | B121: kall sommar | C121: 8 | D121: Havre | E121: 0
A122: 1 | B122: kall sommar | C122: 8 | D122: Höstkorn | E122: 48
A123: 1 | B123: kall sommar | C123: 8 | D123: Höstråg | E123: 48
A124: 1 | B124: kall sommar | C124: 8 | D124: Höstraps | E124: 48
A125: 1 | B125: kall sommar | C125: 8 | D125: Höstrybs | E125: 48
A126: 1 | B126: kall sommar | C126: 8 | D126: Höstvete | E126: 48
A127: 1 | B127: kall sommar | C127: 8 | D127: Industripot | E127: 0
A128: 1 | B128: kall sommar | C128: 8 | D128: Matpotatis | E128: 0
A129: 1 | B129: kall sommar | C129: 8 | D129: Oljelin | E129: 0
A130: 1 | B130: kall sommar | C130: 8 | D130: Rågvete | E130: 48
A131: 1 | B131: kall sommar | C131: 8 | D131: Sockerbetor | E131: 0
A132: 1 | B132: kall sommar | C132: 8 | D132: Spånadslin | E132: 0
A133: 1 | B133: kall sommar | C133: 8 | D133: Vall | E133: 58
A134: 1 | B134: kall sommar | C134: 8 | D134: Vårkorn | E134: 0
A135: 1 | B135: kall sommar | C135: 8 | D135: Vårraps | E135: 0
A136: 1 | B136: kall sommar | C136: 8 | D136: Vårrybs | E136: 0
A137: 1 | B137: kall sommar | C137: 8 | D137: Vårvete | E137: 2
A138: 1 | B138: kall sommar | C138: 9 | D138: Ärter | E138: 0
A139: 1 | B139: kall sommar | C139: 9 | D139: Gröngödsling | E139: 27
A140: 1 | B140: kall sommar | C140: 9 | D140: Havre | E140: 0
A141: 1 | B141: kall sommar | C141: 9 | D141: Höstkorn | E141: 28
A142: 1 | B142: kall sommar | C142: 9 | D142: Höstråg | E142: 28
A143: 1 | B143: kall sommar | C143: 9 | D143: Höstraps | E143: 28
A144: 1 | B144: kall sommar | C144: 9 | D144: Höstrybs | E144: 28
A145: 1 | B145: kall sommar | C145: 9 | D145: Höstvete | E145: 28
A146: 1 | B146: kall sommar | C146: 9 | D146: Industripot | E146: 0
A147: 1 | B147: kall sommar | C147: 9 | D147: Matpotatis | E147: 0
A148: 1 | B148: kall sommar | C148: 9 | D148: Oljelin | E148: 0
A149: 1 | B149: kall sommar | C149: 9 | D149: Rågvete | E149: 28
A150: 1 | B150: kall sommar | C150: 9 | D150: Sockerbetor | E150: 0
A151: 1 | B151: kall sommar | C151: 9 | D151: Spånadslin | E151: 0
A152: 1 | B152: kall sommar | C152: 9 | D152: Vall | E152: 27
A153: 1 | B153: kall sommar | C153: 9 | D153: Vårkorn | E153: 0
A154: 1 | B154: kall sommar | C154: 9 | D154: Vårraps | E154: 0
A155: 1 | B155: kall sommar | C155: 9 | D155: Vårrybs | E155: 0
A156: 1 | B156: kall sommar | C156: 9 | D156: Vårvete | E156: 0
A157: 1 | B157: kall sommar | C157: 10 | D157: Ärter | E157: 32
A158: 1 | B158: kall sommar | C158: 10 | D158: Gröngödsling | E158: 69
A159: 1 | B159: kall sommar | C159: 10 | D159: Havre | E159: 15
A160: 1 | B160: kall sommar | C160: 10 | D160: Höstkorn | E160: 60
A161: 1 | B161: kall sommar | C161: 10 | D161: Höstråg | E161: 60
A162: 1 | B162: kall sommar | C162: 10 | D162: Höstraps | E162: 60
A163: 1 | B163: kall sommar | C163: 10 | D163: Höstrybs | E163: 60
A164: 1 | B164: kall sommar | C164: 10 | D164: Höstvete | E164: 60
A165: 1 | B165: kall sommar | C165: 10 | D165: Industripot | E165: 0
A166: 1 | B166: kall sommar | C166: 10 | D166: Matpotatis | E166: 0
A167: 1 | B167: kall sommar | C167: 10 | D167: Oljelin | E167: 32
A168: 1 | B168: kall sommar | C168: 10 | D168: Rågvete | E168: 60
A169: 1 | B169: kall sommar | C169: 10 | D169: Sockerbetor | E169: 0
A170: 1 | B170: kall sommar | C170: 10 | D170: Spånadslin | E170: 32
A171: 1 | B171: kall sommar | C171: 10 | D171: Vall | E171: 69
A172: 1 | B172: kall sommar | C172: 10 | D172: Vårkorn | E172: 32
A173: 1 | B173: kall sommar | C173: 10 | D173: Vårraps | E173: 32
A174: 1 | B174: kall sommar | C174: 10 | D174: Vårrybs | E174: 32
A175: 1 | B175: kall sommar | C175: 10 | D175: Vårvete | E175: 34
A176: 1 | B176: kall sommar | C176: 11 | D176: Ärter | E176: 0
A177: 1 | B177: kall sommar | C177: 11 | D177: Gröngödsling | E177: 0
A178: 1 | B178: kall sommar | C178: 11 | D178: Havre | E178: 0
A179: 1 | B179: kall sommar | C179: 11 | D179: Industripot | E179: 0
A180: 1 | B180: kall sommar | C180: 11 | D180: Matpotatis | E180: 0
A181: 1 | B181: kall sommar | C181: 11 | D181: Oljelin | E181: 0
A182: 1 | B182: kall sommar | C182: 11 | D182: Spånadslin | E182: 0
A183: 1 | B183: kall sommar | C183: 11 | D183: Vall | E183: 0
A184: 1 | B184: kall sommar | C184: 11 | D184: Vårkorn | E184: 0
A185: 1 | B185: kall sommar | C185: 11 | D185: Vårraps | E185: 0
A186: 1 | B186: kall sommar | C186: 11 | D186: Vårrybs | E186: 0
A187: 1 | B187: kall sommar | C187: 11 | D187: Vårvete | E187: 0
A188: 1 | B188: kall sommar | C188: 12 | D188: Ärter | E188: 10
A189: 1 | B189: kall sommar | C189: 12 | D189: Gröngödsling | E189: 62
A190: 1 | B190: kall sommar | C190: 12 | D190: Havre | E190: 0
A191: 1 | B191: kall sommar | C191: 12 | D191: Oljelin | E191: 10
A192: 1 | B192: kall sommar | C192: 12 | D192: Spånadslin | E192: 10
A193: 1 | B193: kall sommar | C193: 12 | D193: Vall | E193: 62
A194: 1 | B194: kall sommar | C194: 12 | D194: Vårkorn | E194: 10
A195: 1 | B195: kall sommar | C195: 12 | D195: Vårraps | E195: 10
A196: 1 | B196: kall sommar | C196: 12 | D196: Vårrybs | E196: 10
A197: 1 | B197: kall sommar | C197: 12 | D197: Vårvete | E197: 11
A198: 1 | B198: kall sommar | C198: 13 | D198: Ärter | E198: 0
A199: 1 | B199: kall sommar | C199: 13 | D199: Gröngödsling | E199: 0
A200: 1 | B200: kall sommar | C200: 13 | D200: Havre | E200: 0
... 4265 more rows
